Workbook

Sheet 目录
A1: 2024年度政府决算公开目录
A2: 一、一般公共预算收入决算表
A3: 二、一般公共预算支出决算表
A4: 三、一般公共预算收支平衡表
A5: 四、一般公共预算经济分类支出决算表
A6: 五、一般公共预算经济分类（基本）支出决算表
A7: 六、一般公共预算税收返还和转移支付决算表
A8: 七、本级一般公共预算收入决算表
A9: 八、本级一般公共预算支出决算表
A10: 九、本级一般公共预算收支平衡表
A11: 十、本级一般公共预算经济分类支出决算表
A12: 十一、本级一般公共预算经济分类科目（基本）支出决算表
A13: 十二、政府性基金收入决算表
A14: 十三、政府性基金支出决算表
A15: 十四、政府性基金收支平衡表
A16: 十五、本级政府性基金收入决算表
A17: 十六、本级政府性基金支出决算表
A18: 十七、本级政府性基金收支平衡表
A19: 十八、政府性基金转移性支付补助执行情况表
A20: 十九、本级预算内基本建设支出决算表
A21: 二十、国有资本经营预算收入决算表
A22: 二十一、国有资本经营预算支出决算表
A23: 二十二、国有资本经营预算收支平衡表
A24: 二十三、本级国有资本经营预算收入决算表
A25: 二十四、本级国有资本经营预算支出决算表
A26: 二十五、本级国有资本经营预算收支平衡表
A27: 二十六、 对下国有资本经营预算转移支付决算表
A28: 二十七、社会保险基金收入决算表
A29: 二十八、社会保险基金支出决算表
A30: 二十九、社会保险基金收支平衡表
A31: 三十、本级社会保险基金收入决算表
A32: 三十一、本级社会保险基金支出决算表
A33: 三十二、本级社会保险基金收支平衡表
A34: 三十三、地方政府一般债务余额
A35: 三十四、地方政府专项债务余额
A36: 三十五、地方政府性债务余额
A37: 三十六、地方政府债券使用情况
A38: 三十七、地方政府债务限额及余额情况
A39: 三十八、政府债务十年到期情况
A40: 三十九、地方政府债务还本付息情况表
A41: 四十、新增一般债券和专项债券情况表
A42: 四十一、专项债券收入、支出及专项收入情况表
A43: 四十二、重大政府投资计划和重大投资项目表

Sheet 1.一般公共预算收入决算表
A1: 2024年盐边县地方一般公共预算收入决算表
E2: 单位：万元，%
A3: 科 目 | B3: 年初预算数 | C3: 调整预算数 | D3: 决 算 数 | E3: 为调整预算 | F3: 为上年决算
A4: 一、税收收入 | B4: 140,000 | C4: 129,300 | D4: 129,385 | E4: =D4/C4*100 -> 100.07 | F4: 102.09
A5: 增值税 | B5: 65,850 | C5: 56,000 | D5: 56,051 | E5: =D5/C5*100 -> 100.09 | F5: 96.24
A6: 消费税 | C6: 0 | D6: 0
A7: 企业所得税 | B7: 30,400 | C7: 32,100 | D7: 32,080 | E7: 99.94 | F7: 109.99
A8: 个人所得税 | B8: 2,200 | C8: 1,200 | D8: 1,239 | E8: 103.25 | F8: 51.50
A9: 资源税 | B9: 10,600 | C9: 7,700 | D9: 7,665 | E9: 99.55 | F9: 89.45
A10: 城市维护建设税 | B10: 7,000 | C10: 6,000 | D10: 5,998 | E10: 99.97 | F10: 94.43
A11: 房产税 | B11: 2,800 | C11: 3,900 | D11: 3,894 | E11: 99.85 | F11: 140.68
A12: 印花税 | B12: 1,500 | C12: 1,700 | D12: 1,719 | E12: 101.12 | F12: 116.15
A13: 城镇土地使用税 | B13: 5,500 | C13: 7,900 | D13: 7,855 | E13: 99.43 | F13: 141.94
A14: 土地增值税 | B14: 100 | C14: 400 | D14: 378 | E14: 94.50 | F14: -165.79
A15: 车船税 | B15: 700 | C15: 750 | D15: 757 | E15: 100.93 | F15: 107.07
A16: 耕地占用税 | B16: 8,000 | C16: 6,700 | D16: 6,782 | E16: 101.22 | F16: 90.07
A17: 契税 | B17: 2,500 | C17: 2,600 | D17: 2,615 | E17: 100.58 | F17: 173.29
A18: 烟叶税 | B18: 2,500 | C18: 2,000 | D18: 1,995 | E18: 99.75 | F18: 83.44
A19: 环境保护税 | B19: 350 | C19: 350 | D19: 356 | E19: 101.71 | F19: 118.67
A20: 其他税收收入 | C20: 0 | D20: 1 | F20: 8.33
A21: 二、非税收入 | B21: 164,200 | C21: 170,700 | D21: 170,786 | E21: 100.05 | F21: 97.38
A22: 专项收入 | B22: 5,500 | C22: 5,600 | D22: 5,664 | E22: 101.14 | F22: 96.11
A23: 行政事业性收费收入 | B23: 800 | C23: 800 | D23: 868 | E23: 108.50 | F23: 59.09
A24: 罚没收入 | B24: 7,300 | C24: 3,900 | D24: 3,900 | E24: 100.00 | F24: 58.68
A25: 国有资本经营收入 | C25: 0 | D25: 0
A26: 国有资源（资产）有偿使用收入 | B26: 150,200 | C26: 157,200 | D26: 157,142 | E26: 99.96 | F26: 97.64
A27: 捐赠收入 | C27: 0 | D27: 0
A28: 政府住房基金收入 | B28: 100 | C28: 150 | D28: 145 | E28: 96.67 | F28: 89.51
A29: 其他收入 | B29: 300 | C29: 3,050 | D29: 3,067 | E29: 100.56 | F29: 1,144.40
A30: 地方一般公共预算收入 | B30: =B4+B21 -> 304,200 | C30: =C4+C21 -> 300,000 | D30: =D4+D21 -> 300,171 | E30: 100.06 | F30: 99.35

Sheet 2.一般公共预算支出决算表
A1: 2024年盐边县一般公共预算支出决算表
E2: 单位：万元，%
A3: 科 目 | B3: 年初预算数 | C3: 调整预算数 | D3: 决 算 数 | E3: 为调整预算 | F3: 为上年决算
A4: 一、一般公共服务支出 | B4: 35,050 | C4: 39,579 | D4: 38,986 | E4: =(D4/C4)*100 -> 98.50 | F4: 121.66
A5: 二、外交支出 | C5: 0 | D5: 0
A6: 三、国防支出 | B6: 400 | C6: 120 | D6: 120 | E6: 100.00 | F6: 104.35
A7: 四、公共安全支出 | B7: 14,776 | C7: 14,520 | D7: 13,515 | E7: 93.08 | F7: 117.25
A8: 五、教育支出 | B8: 45,157 | C8: 44,376 | D8: 37,286 | E8: 84.02 | F8: 100.86
A9: 六、科学技术支出 | B9: 3,093 | C9: 914 | D9: 836 | E9: 91.47 | F9: 37.52
A10: 七、文化旅游体育与传媒支出 | B10: 9,938 | C10: 5,673 | D10: 4,461 | E10: 78.64 | F10: 94.73
A11: 八、社会保障和就业支出 | B11: 44,414 | C11: 45,023 | D11: 44,347 | E11: 98.50 | F11: 134.61
A12: 九、卫生健康支出 | B12: 32,272 | C12: 20,195 | D12: 19,977 | E12: 98.92 | F12: 87.90
A13: 十、节能环保支出 | B13: 8,122 | C13: 30,297 | D13: 25,669 | E13: 84.72 | F13: 373.91
A14: 十一、城乡社区支出 | B14: 11,887 | C14: 16,016 | D14: 12,366 | E14: 77.21 | F14: 124.85
A15: 十二、农林水支出 | B15: 66,512 | C15: 103,178 | D15: 76,615 | E15: 74.26 | F15: 139.30
A16: 十三、交通运输支出 | B16: 13,361 | C16: 21,220 | D16: 10,985 | E16: 51.77 | F16: 166.72
A17: 十四、资源勘探工业信息等支出 | B17: 180 | C17: 7,999 | D17: 7,999 | E17: 100.00 | F17: 5,332.67
A18: 十五、商业服务业等支出 | B18: 1,463 | C18: 2,827 | D18: 2,635 | E18: 93.21 | F18: 216.16
A19: 十六、金融支出 | B19: 100 | C19: 369 | D19: 11 | E19: 2.98 | F19: 11.34
A20: 十七、自然资源海洋气象等支出 | B20: 6,307 | C20: 6,522 | D20: 6,363 | E20: 97.56 | F20: 121.06
A21: 十八、住房保障支出 | B21: 31,075 | C21: 18,678 | D21: 17,879 | E21: 95.72 | F21: 80.97
A22: 十九、粮油物资储备支出 | B22: 1,109 | C22: 561 | D22: 557 | E22: 99.29 | F22: 63.73
A23: 二十、灾害防治及应急管理支出 | B23: 6,067 | C23: 7,754 | D23: 7,496 | E23: 96.67 | F23: 148.29
A24: 二十一、预备费 | B24: 3,500
A25: 二十二、其他支出 | B25: 5,122 | F25: 0.00
A26: 二十三、债务付息支出 | B26: 4,800 | C26: 4,661 | D26: 4,661 | E26: 100.00 | F26: 98.40
A27: 二十四、债务发行费用支出 | B27: 25 | C27: 11 | D27: 11 | E27: 100.00 | F27: 55.00
A28: 一般公共预算支出 | B28: =SUM(B4:B27) -> 344,730 | C28: =SUM(C4:C27) -> 390,493 | D28: =SUM(D4:D27) -> 332,775 | E28: 85.22 | F28: 126.14

Sheet 3.一般公共预算收支平衡决算表
A1: 2024年盐边县一般公共预算收支决算平衡表
A2: 单位：万元
A3: 科 目 | B3: 决 算 数 | C3: 科 目 | D3: 决 算 数
A4: 一般公共预算收入 | B4: 300,171 | C4: 一般公共预算支出 | D4: 332,775
A5: 上级补助收入 | B5: 130,433 | C5: 补助下级支出 | D5: 0
A6: 返还性收入 | B6: -679 | C6: 返还性支出 | D6: 0
A7: 所得税基数返还收入 | B7: -63 | C7: 所得税基数返还支出 | D7: 0
A8: 成品油税费改革税收返还收入 | B8: 1,124 | C8: 成品油税费改革税收返还支出 | D8: 0
A9: 增值税税收返还收入 | B9: 3,926 | C9: 增值税税收返还支出 | D9: 0
A10: 消费税税收返还收入 | C10: 消费税税收返还支出
A11: 增值税“五五分享”税收返还收入 | B11: -5,487 | C11: 增值税“五五分享”税收返还支出
A12: 其他返还性收入 | B12: -179 | C12: 其他返还性支出
A13: 一般性转移支付收入 | B13: =SUM(B14:B51) -> 110,588 | C13: 一般性转移支付支出
A14: 体制补助收入 | B14: 0 | C14: 体制补助支出
A15: 均衡性转移支付收入 | B15: 31,902 | C15: 均衡性转移支付支出
A16: 县级基本财力保障机制奖补资金收入 | B16: 5,332 | C16: 县级基本财力保障机制奖补资金支出
A17: 结算补助收入 | B17: 2,776 | C17: 结算补助支出
A18: 资源枯竭型城市转移支付补助收入 | B18: 0 | C18: 资源枯竭型城市转移支付补助支出
A19: 企业事业单位划转补助收入 | B19: 42 | C19: 企业事业单位划转补助支出
A20: 产粮(油)大县奖励资金收入 | B20: 0 | C20: 产粮(油)大县奖励资金支出
A21: 重点生态功能区转移支付收入 | B21: 1,590 | C21: 重点生态功能区转移支付支出
A22: 固定数额补助收入 | B22: 11,526 | C22: 固定数额补助支出
A23: 革命老区转移支付收入 | B23: 0 | C23: 革命老区转移支付支出
A24: 民族地区转移支付收入 | B24: 0 | C24: 民族地区转移支付支出
A25: 边境地区转移支付收入 | B25: 0 | C25: 边境地区转移支付支出
A26: 巩固脱贫攻坚成果衔接乡村振兴转移支付收入 | B26: 6,779 | C26: 巩固脱贫攻坚成果衔接乡村振兴转移支付支出
A27: 一般公共服务共同财政事权转移支付收入 | B27: 0 | C27: 一般公共服务共同财政事权转移支付支出
A28: 外交共同财政事权转移支付收入 | B28: 0 | C28: 外交共同财政事权转移支付支出
A29: 国防共同财政事权转移支付收入 | B29: 0 | C29: 国防共同财政事权转移支付支出
A30: 公共安全共同财政事权转移支付收入 | B30: 1,199 | C30: 公共安全共同财政事权转移支付支出
A31: 教育共同财政事权转移支付收入 | B31: 6,616 | C31: 教育共同财政事权转移支付支出
A32: 科学技术共同财政事权转移支付收入 | B32: 44 | C32: 科学技术共同财政事权转移支付支出
A33: 文化旅游体育与传媒共同财政事权转移支付收入 | B33: 1,228 | C33: 文化旅游体育与传媒共同财政事权转移支付支出
A34: 社会保障和就业共同财政事权转移支付收入 | B34: 6,855 | C34: 社会保障和就业共同财政事权转移支付支出
A35: 医疗卫生共同财政事权转移支付收入 | B35: 3,155 | C35: 医疗卫生共同财政事权转移支付支出
A36: 节能环保共同财政事权转移支付收入 | B36: 1,712 | C36: 节能环保共同财政事权转移支付支出
A37: 城乡社区共同财政事权转移支付收入 | C37: 城乡社区共同财政事权转移支付支出
A38: 农林水共同财政事权转移支付收入 | B38: 21,570 | C38: 农林水共同财政事权转移支付支出
A39: 交通运输共同财政事权转移支付收入 | B39: 6,582 | C39: 交通运输共同财政事权转移支付支出
A40: 资源勘探工业信息等共同财政事权转移支付收入 | B40: 0 | C40: 资源勘探工业信息等共同财政事权转移支付支出
A41: 商业服务业等共同财政事权转移支付收入 | B41: 0 | C41: 商业服务业等共同财政事权转移支付支出
A42: 金融共同财政事权转移支付收入 | B42: 0 | C42: 金融共同财政事权转移支付支出
A43: 自然资源海洋气象等共同财政事权转移支付收入 | B43: 0 | C43: 自然资源海洋气象等共同财政事权转移支付支出
A44: 住房保障共同财政事权转移支付收入 | B44: 212 | C44: 住房保障共同财政事权转移支付支出
A45: 粮油物资储备共同财政事权转移支付收入 | B45: 0 | C45: 粮油物资储备共同财政事权转移支付支出
A46: 灾害防治及应急管理共同财政事权转移支付收入 | B46: 178 | C46: 灾害防治及应急管理共同财政事权转移支付支出
A47: 其他共同财政事权转移支付收入 | B47: 0 | C47: 其他共同财政事权转移支付支出
A48: 增值税留抵退税转移支付收入 | C48: 增值税留抵退税转移支付支出
A49: 其他退税减税降费转移支付收入 | C49: 其他退税减税降费转移支付支出
A50: 补充县区财力转移支付收入 | B50: 0 | C50: 补充县区财力转移支付支出
A51: 其他一般性转移支付收入 | B51: 1,290 | C51: 其他一般性转移支付支出
A52: 专项转移支付收入 | B52: =SUM(B53:B73) -> 20,524 | C52: 专项转移支付支出
A53: 一般公共服务 | B53: 20 | C53: 一般公共服务
A54: 外交 | C54: 外交
A55: 国防 | C55: 国防
A56: 公共安全 | B56: 20 | C56: 公共安全
A57: 教育 | C57: 教育
A58: 科学技术 | B58: 50 | C58: 科学技术
A59: 文化旅游体育与传媒 | B59: 52 | C59: 文化旅游体育与传媒
A60: 社会保障和就业 | B60: 800 | C60: 社会保障和就业
A61: 卫生健康 | B61: 179 | C61: 卫生健康
A62: 节能环保 | B62: 4,363 | C62: 节能环保
A63: 城乡社区 | B63: 3,621 | C63: 城乡社区
A64: 农林水 | B64: 5,849 | C64: 农林水
A65: 交通运输 | B65: 774 | C65: 交通运输
A66: 资源勘探工业信息等 | C66: 资源勘探工业信息等
A67: 商业服务业等 | B67: 192 | C67: 商业服务业等
A68: 金融 | B68: 358 | C68: 金融
A69: 自然资源海洋气象等 | C69: 自然资源海洋气象等
A70: 住房保障 | C70: 住房保障
A71: 粮油物资储备 | B71: 9 | C71: 粮油物资储备
A72: 灾害防治及应急管理 | B72: 4,237 | C72: 灾害防治及应急管理
A73: 其他收入 | C73: 其他支出
A74: 上年结余 | B74: 34,933 | C74: 上解上级支出 | D74: 86,856
A75: 调入资金 | C75: 体制上解支出 | D75: 11
A76: 从政府性基金预算调入 | C76: 专项上解支出 | D76: 86,845
A77: 从国有资本经营预算调入 | C77: 调出资金
A78: 从其他资金调入
A79: 债务收入 | C79: 债务还本支出 | D79: 9,164
A80: 地方政府债务收入 | C80: 地方政府一般债务还本支出 | D80: 9,164
A81: 一般债务收入 | C81: 地方政府一般债券还本支出 | D81: 9,164
A82: 地方政府一般债券收入 | C82: 地方政府向外国政府借款还本支出
A83: 地方政府向外国政府借款收入 | C83: 地方政府向国际组织借款还本支出
A84: 地方政府向国际组织借款收入 | C84: 地方政府其他一般债务还本支出
A85: 地方政府其他一般债务收入
A86: 债务转贷收入 | B86: 16,478 | C86: 债务转贷支出
A87: 地方政府一般债务转贷收入 | B87: 16,478 | C87: 地方政府一般债券转贷支出
A88: 地方政府一般债券转贷收入 | B88: 16,478 | C88: 地方政府向外国政府借款转贷支出
A89: 地方政府向外国政府借款转贷收入 | C89: 地方政府向国际组织借款转贷支出
A90: 地方政府向国际组织借款转贷收入 | C90: 地方政府其他一般债务转贷支出
A91: 地方政府其他一般债务转贷收入
A92: 动用预算稳定调节基金 | B92: 19,341 | C92: 安排预算稳定调节基金 | D92: 14,843
A93: 接受其他地区援助收入 | C93: 援助其他地区支出
C94: 年终结余 | D94: 57,718
C95: 结转下年的支出 | D95: 57,718
A96: 收 入 总 计 | B96: 501,356 | C96: 支 出 总 计 | D96: 501,356

Sheet 4.一般公共预算经济分类支出决算表
A1: 2024年盐边县一般公共预算经济分类支出决算表
E2: 单位：万元，%
A3: 科 目 | B3: 年初预算数 | C3: 调整预算数 | D3: 决 算 数 | E3: 为调整预算 | F3: 为上年决算
A4: 机关工资福利支出 | B4: 46,284 | C4: 33,048 | D4: 32,859 | E4: =D4/C4*100 -> 99.43 | F4: 95.50
A5: 工资奖金津补贴 | B5: 30,768 | C5: 21,300 | D5: 21,240 | E5: =D5/C5*100 -> 99.72 | F5: 96.48
A6: 社会保障缴费 | B6: 8,656 | C6: 7,000 | D6: 6,953 | E6: 99.33 | F6: 101.76
A7: 住房公积金 | B7: 3,194 | C7: 2,560 | D7: 2,478 | E7: 96.80 | F7: 95.75
A8: 其他工资福利支出 | B8: 3,666 | C8: 2,188 | D8: 2,188 | E8: 100.00 | F8: 73.65
A9: 机关商品和服务支出 | B9: 54,878 | C9: 54,312 | D9: 42,010 | E9: 77.35 | F9: 106.94
A10: 办公经费 | B10: 11,106 | C10: 10,905 | D10: 10,905 | E10: 100.00 | F10: 121.52
A11: 会议费 | B11: 350 | C11: 252 | D11: 252 | E11: 100.00 | F11: 21.93
A12: 培训费 | B12: 465 | C12: 348 | D12: 348 | E12: 100.00 | F12: 70.30
A13: 专用材料购置费 | B13: 1,855 | C13: 1,912 | D13: 1,912 | E13: 100.00 | F13: 127.21
A14: 委托业务费 | B14: 21,782 | C14: 23,464 | D14: 23,464 | E14: 100.00 | F14: 132.93
A15: 公务接待费 | B15: 65 | C15: 150 | D15: 149 | E15: 99.33 | F15: 100.68
A16: 因公出国（境）费用 | C16: 9 | D16: 9
A17: 公务用车运行维护费 | B17: 560 | C17: 562 | D17: 562 | E17: 100.00 | F17: 103.31
A18: 维修（护）费 | B18: 1,855 | C18: 3,140 | D18: 1,140 | E18: 36.31 | F18: 75.85
A19: 其他商品和服务支出 | B19: 16,840 | C19: 13,570 | D19: 3,269 | E19: 24.09 | F19: 44.69
A20: 机关资本性支出（一） | B20: 67,694 | C20: 158,416 | D20: 114,769 | E20: 72.45 | F20: 222.20
A21: 房屋建筑物购建 | B21: 3,955 | C21: 2,662 | D21: 2,662 | E21: 100.00 | F21: 83.06
A22: 基础设施建设 | B22: 50,034 | C22: 110,963 | D22: 90,963 | E22: 81.98 | F22: 227.53
A23: 公务用车购置 | B23: 200 | C23: 196 | D23: 90 | E23: 45.92 | F23: 46.39
A24: 土地征迁补偿和安置支出 | B24: 3,164 | C24: 23,926 | D24: 13,926 | E24: 58.20 | F24: 543.14
A25: 设备购置 | B25: 3,792 | C25: 3,186 | D25: 3,186 | E25: 100.00 | F25: 103.68
A26: 大型修缮 | B26: 1,117 | C26: 1,050 | D26: 1,002 | E26: 95.43 | F26: 110.72
A27: 其他资本性支出 | B27: 5,432 | C27: 16,433 | D27: 2,940 | E27: 17.89 | F27: 169.84
A28: 机关资本性支出（二） | B28: 13,428 | C28: 4,640 | D28: 4,380 | E28: 94.40 | F28: 99.34
A29: 房屋建筑物购建 | B29: 901 | C29: 125 | D29: 125 | E29: 100.00 | F29: 17.12
A30: 基础设施建设 | B30: 11,828 | C30: 3,365 | D30: 3,282 | E30: 97.53 | F30: 105.46
A31: 公务用车购置
A32: 设备购置 | B32: 678 | C32: 1,100 | D32: 930 | E32: 84.55 | F32: 169.09
A33: 大型修缮 | B33: 12 | F33: 0.00
A34: 其他资本性支出 | B34: 9 | C34: 50 | D34: 43 | E34: 86.00 | F34: 614.29
A35: 对事业单位经常性补助 | B35: 83,685 | C35: 64,362 | D35: 63,766 | E35: 99.07 | F35: 94.03
A36: 工资福利支出 | B36: 69,923 | C36: 55,012 | D36: 54,679 | E36: 99.39 | F36: 96.50
A37: 商品和服务支出 | B37: 13,762 | C37: 9,350 | D37: 9,087 | E37: =D37/C37*100 -> 97.19 | F37: 81.48
A38: 其他对事业单位补助
A39: 对事业单位资本性补助 | B39: 6,444 | C39: 2,981 | D39: 2,981 | E39: 100.00 | F39: 57.09
A40: 资本性支出（一） | B40: 6,444 | C40: 2,981 | D40: 2,981 | E40: 100.00 | F40: 57.09
A41: 资本性支出（二）
A42: 对企业补助 | B42: 3,659 | C42: 14,548 | D42: 14,330 | E42: 98.50 | F42: 220.53
A43: 费用补贴 | B43: 500 | C43: 3,548 | D43: 3,548 | E43: 100.00 | F43: 90.10
A44: 利息补贴 | B44: 23 | F44: 0.00
A45: 其他对企业补助 | B45: 3,136 | C45: 11,000 | D45: 10,782 | E45: 98.02 | F45: 424.32
A46: 对企业资本性支出 | B46: 10,000 | C46: 16,550 | D46: 16,445 | E46: 99.37 | F46: 254.06
A47: 对企业资本性支出（一） | B47: 10,000 | C47: 16,400 | D47: 16,320 | E47: 99.51 | F47: 252.12
A48: 对企业资本性支出（二）
A49: 政府投资基金股权投资
A50: 其他对企业资本性支出 | C50: 150 | D50: 125
A51: 对个人和家庭的补助 | B51: 48,466 | C51: 35,067 | D51: 34,666 | E51: 98.86 | F51: 88.13
A52: 社会福利和救助 | B52: 33,950 | C52: 25,981 | D52: 25,763 | E52: 99.16 | F52: 93.70
A53: 助学金 | B53: 1,425 | C53: 1,026 | D53: 1,026 | E53: 100.00 | F53: 88.83
A54: 个人农业生产补贴 | B54: 8,663 | C54: 5,923 | D54: 5,824 | E54: 98.33 | F54: 82.96
A55: 离退休费 | B55: 202 | C55: 123 | D55: 123 | E55: 100.00 | F55: 75.00
A56: 其他对个人和家庭补助 | B56: 4,226 | C56: 2,014 | D56: 1,930 | E56: 95.83 | F56: 55.11
A57: 对社会保障基金补助 | B57: 1,867 | C57: 1,897 | D57: 1,897 | E57: 100.00 | F57: 125.21
A58: 对社会保险基金补助 | B58: 1,867 | C58: 1,897 | D58: 1,897 | E58: 100.00 | F58: 125.21
A59: 补充全国社会保障基金
A60: 对机关事业单位职业年金的补助
A61: 债务利息及费用支出 | B61: 4,825 | C61: 4,672 | D61: 4,672 | E61: 100.00 | F61: 98.21
A62: 国内债务付息 | B62: 4,800 | C62: 4,661 | D62: 4,661 | E62: 100.00 | F62: 98.40
A63: 国外债务付息
A64: 国内债务发行费用 | B64: 25 | C64: 11 | D64: 11 | E64: 100.00 | F64: 55.00
A65: 国外债务发行费用
A66: 预备费及预留 | B66: 3,500 | D66: 0
A67: 预备费 | B67: 3,500
A68: 预留
A69: 其他支出
A70: 国家赔偿费用支出
A71: 对民间非营利组织和群众性自治组织补贴
A72: 经常性赠与 | D72: 0
A73: 资本性赠与 | D73: 0
A74: 其他支出 | F74: 0.00
A75: 一般公共预算支出 | B75: =B4+B9+B20+B28+B35+B39+B42+B46+B51+B57+B61+B66 -> 344,730 | C75: =C4+C9+C20+C28+C35+C39+C42+C46+C51+C57+C61 -> 390,493 | D75: 332,775 | E75: =D75/C75*100 -> 85.22 | F75: 126.14

Sheet 5.一般公共预算经济分类（基本）支出决算表
A1: 2024年盐边县一般公共预算经济分类（基本）支出决算表
E2: 单位：万元，%
A3: 科 目 | B3: 年初预算数 | C3: 调整预算数 | D3: 决 算 数 | E3: 为调整预算 | F3: 为上年决算
A4: 机关工资福利支出 | B4: 33,660 | C4: 33,840 | D4: 32,859 | E4: =D4/C4*100 -> 97.10 | F4: 97.10
A5: 工资奖金津补贴 | B5: 22,000 | C5: 21,543 | D5: 21,240 | E5: =D5/C5*100 -> 98.59 | F5: 98.59
A6: 社会保障缴费 | B6: 6,900 | C6: 6,833 | D6: 6,953 | E6: 101.76 | F6: 101.76
A7: 住房公积金 | B7: 2,560 | C7: 2,588 | D7: 2,478 | E7: 95.75 | F7: 95.75
A8: 其他工资福利支出 | B8: 2,200 | C8: 2,876 | D8: 2,188 | E8: 76.08 | F8: 76.08
A9: 机关商品和服务支出 | B9: 6,276 | C9: 5,217 | D9: 5,874 | E9: 112.59 | F9: 112.59
A10: 办公经费 | B10: 3,680 | C10: 3,782 | D10: 3,545 | E10: 93.73 | F10: 93.73
A11: 会议费 | B11: 50 | C11: 32 | D11: 38 | E11: 118.75 | F11: 118.75
A12: 培训费 | B12: 60 | C12: 21 | D12: 27 | E12: 128.57 | F12: 128.57
A13: 专用材料购置费 | B13: 165 | C13: 130 | D13: 149 | E13: 114.62 | F13: 114.62
A14: 委托业务费 | B14: 1,500 | C14: 503 | D14: 1,415 | E14: 281.31 | F14: 281.31
A15: 公务接待费 | B15: 37 | C15: 8 | D15: 6 | E15: 75.00 | F15: 75.00
A16: 因公出国（境）费用
A17: 公务用车运行维护费 | B17: 424 | C17: 424 | D17: 386 | E17: 91.04 | F17: 91.04
A18: 维修（护）费 | B18: 185 | C18: 97 | D18: 151 | E18: 155.67 | F18: 155.67
A19: 其他商品和服务支出 | B19: 175 | C19: 220 | D19: 157 | E19: 71.36 | F19: 71.36
A20: 机关资本性支出（一）
A21: 房屋建筑物购建
A22: 基础设施建设
A23: 公务用车购置
A24: 土地征迁补偿和安置支出
A25: 设备购置
A26: 大型修缮
A27: 其他资本性支出
A28: 机关资本性支出（二）
A29: 房屋建筑物购建
A30: 基础设施建设
A31: 公务用车购置
A32: 设备购置
A33: 大型修缮
A34: 其他资本性支出
A35: 对事业单位经常性补助 | B35: 58,909 | C35: 60,267 | D35: 63,766 | E35: =D35/C35*100 -> 105.81 | F35: 105.81
A36: 工资福利支出 | B36: 55,000 | C36: 56,346 | D36: 54,679 | E36: =D36/C36*100 -> 97.04 | F36: 97.04
A37: 商品和服务支出 | B37: 3,909 | C37: 3,921 | D37: 9,087 | E37: =D37/C37*100 -> 231.75 | F37: 231.75
A38: 其他对事业单位补助
A39: 对事业单位资本性补助 | B39: 390
A40: 资本性支出（一） | B40: 338
A41: 资本性支出（二） | B41: 52
A42: 对企业补助
A43: 对企业资本性支出
A44: 对个人和家庭的补助 | B44: 10,595 | C44: 9,968 | D44: 10,371 | E44: =D44/C44*100 -> 104.04 | F44: 104.04
A45: 社会福利和救助 | B45: 10,550 | C45: 9,797 | D45: 10,243 | E45: =D45/C45*100 -> 104.55 | F45: 104.55
A46: 助学金 | C46: 1 | E46: 0.00 | F46: 0.00
A47: 个人农业生产补贴
A48: 离退休费 | B48: 35 | C48: 132 | D48: 123 | E48: 93.18 | F48: 93.18
A49: 其他对个人和家庭补助 | B49: 10 | C49: 38 | D49: 5 | E49: 13.16 | F49: 13.16
A50: 对社会保障基金补助
A51: 债务利息及费用支出
A52: 其他支出
A53: 一般公共预算支出 | B53: 109,440 | C53: 114,205 | D53: 112,870 | E53: 98.83 | F53: 103.27

Sheet 6.盐边县一般公共预算税收收入返还和转移支付决算表
A1: 2024年度盐边县一般公共预算税收收入返还和转移支付决算表
B2: 单位：万元
A3: 科 目 | B3: 决 算 数
A4: 一般公共预算收入 | B4: 300,171
A5: 上级补助收入 | B5: 130,433
A6: 返还性收入 | B6: -679
A7: 所得税基数返还收入 | B7: -63
A8: 成品油税费改革税收返还收入 | B8: 1,124
A9: 增值税税收返还收入 | B9: 3,926
A10: 消费税税收返还收入
A11: 增值税“五五分享”税收返还收入 | B11: -5,487
A12: 其他返还性收入 | B12: -179
A13: 一般性转移支付收入 | B13: 110,588
A14: 体制补助收入 | B14: 0
A15: 均衡性转移支付收入 | B15: 31,902
A16: 县级基本财力保障机制奖补资金收入 | B16: 5,332
A17: 结算补助收入 | B17: 2,776
A18: 资源枯竭型城市转移支付补助收入 | B18: 0
A19: 企业事业单位划转补助收入 | B19: 42
A20: 产粮(油)大县奖励资金收入 | B20: 0
A21: 重点生态功能区转移支付收入 | B21: 1,590
A22: 固定数额补助收入 | B22: 11,526
A23: 革命老区转移支付收入 | B23: 0
A24: 民族地区转移支付收入 | B24: 0
A25: 边境地区转移支付收入 | B25: 0
A26: 巩固脱贫攻坚成果衔接乡村振兴转移支付收入 | B26: 6,779
A27: 一般公共服务共同财政事权转移支付收入 | B27: 0
A28: 外交共同财政事权转移支付收入 | B28: 0
A29: 国防共同财政事权转移支付收入 | B29: 0
A30: 公共安全共同财政事权转移支付收入 | B30: 1,199
A31: 教育共同财政事权转移支付收入 | B31: 6,616
A32: 科学技术共同财政事权转移支付收入 | B32: 44
A33: 文化旅游体育与传媒共同财政事权转移支付收入 | B33: 1,228
A34: 社会保障和就业共同财政事权转移支付收入 | B34: 6,855
A35: 医疗卫生共同财政事权转移支付收入 | B35: 3,155
A36: 节能环保共同财政事权转移支付收入 | B36: 1,712
A37: 城乡社区共同财政事权转移支付收入
A38: 农林水共同财政事权转移支付收入 | B38: 21,570
A39: 交通运输共同财政事权转移支付收入 | B39: 6,582
A40: 资源勘探工业信息等共同财政事权转移支付收入 | B40: 0
A41: 商业服务业等共同财政事权转移支付收入 | B41: 0
A42: 金融共同财政事权转移支付收入 | B42: 0
A43: 自然资源海洋气象等共同财政事权转移支付收入 | B43: 0
A44: 住房保障共同财政事权转移支付收入 | B44: 212
A45: 粮油物资储备共同财政事权转移支付收入 | B45: 0
A46: 灾害防治及应急管理共同财政事权转移支付收入 | B46: 178
A47: 其他共同财政事权转移支付收入 | B47: 0
A48: 增值税留抵退税转移支付收入
A49: 其他退税减税降费转移支付收入
A50: 补充县区财力转移支付收入 | B50: 0
A51: 其他一般性转移支付收入 | B51: 1,290
A52: 专项转移支付收入 | B52: 20,524
A53: 一般公共服务 | B53: 20
A54: 外交
A55: 国防
A56: 公共安全 | B56: 20
A57: 教育
A58: 科学技术 | B58: 50
A59: 文化旅游体育与传媒 | B59: 52
A60: 社会保障和就业 | B60: 800
A61: 卫生健康 | B61: 179
A62: 节能环保 | B62: 4,363
A63: 城乡社区 | B63: 3,621
A64: 农林水 | B64: 5,849
A65: 交通运输 | B65: 774
A66: 资源勘探工业信息等
A67: 商业服务业等 | B67: 192
A68: 金融 | B68: 358
A69: 自然资源海洋气象等
A70: 住房保障
A71: 粮油物资储备 | B71: 9
A72: 灾害防治及应急管理 | B72: 4,237
A73: 其他收入

Sheet 7.县本级一般公共预算收入决算表
A1: 2024年盐边县县本级一般公共预算收入决算表
E2: 单位：万元，%
A3: 科 目 | B3: 年初预算数 | C3: 调整预算数 | D3: 决 算 数 | E3: 为调整预算 | F3: 为上年决算
A4: 一、税收收入 | B4: 140,000 | C4: 129,300 | D4: 129,385 | E4: 100.07 | F4: 102.09
A5: 增值税 | B5: 65,850 | C5: 56,000 | D5: 56,051 | E5: 100.09 | F5: 96.24
A6: 消费税 | C6: 0 | D6: 0
A7: 企业所得税 | B7: 30,400 | C7: 32,100 | D7: 32,080 | E7: 99.94 | F7: 109.99
A8: 个人所得税 | B8: 2,200 | C8: 1,200 | D8: 1,239 | E8: 103.25 | F8: 51.50
A9: 资源税 | B9: 10,600 | C9: 7,700 | D9: 7,665 | E9: 99.55 | F9: 89.45
A10: 城市维护建设税 | B10: 7,000 | C10: 6,000 | D10: 5,998 | E10: 99.97 | F10: 94.43
A11: 房产税 | B11: 2,800 | C11: 3,900 | D11: 3,894 | E11: 99.85 | F11: 140.68
A12: 印花税 | B12: 1,500 | C12: 1,700 | D12: 1,719 | E12: 101.12 | F12: 116.15
A13: 城镇土地使用税 | B13: 5,500 | C13: 7,900 | D13: 7,855 | E13: 99.43 | F13: 141.94
A14: 土地增值税 | B14: 100 | C14: 400 | D14: 378 | E14: 94.50 | F14: -165.79
A15: 车船税 | B15: 700 | C15: 750 | D15: 757 | E15: 100.93 | F15: 107.07
A16: 耕地占用税 | B16: 8,000 | C16: 6,700 | D16: 6,782 | E16: 101.22 | F16: 90.07
A17: 契税 | B17: 2,500 | C17: 2,600 | D17: 2,615 | E17: 100.58 | F17: 173.29
A18: 烟叶税 | B18: 2,500 | C18: 2,000 | D18: 1,995 | E18: 99.75 | F18: 83.44
A19: 环境保护税 | B19: 350 | C19: 350 | D19: 356 | E19: 101.71 | F19: 118.67
A20: 其他税收收入 | C20: 0 | D20: 1 | F20: 8.33
A21: 二、非税收入 | B21: 164,200 | C21: 170,700 | D21: 170,786 | E21: 100.05 | F21: 97.38
A22: 专项收入 | B22: 5,500 | C22: 5,600 | D22: 5,664 | E22: 101.14 | F22: 96.11
A23: 行政事业性收费收入 | B23: 800 | C23: 800 | D23: 868 | E23: 108.50 | F23: 59.09
A24: 罚没收入 | B24: 7,300 | C24: 3,900 | D24: 3,900 | E24: 100.00 | F24: 58.68
A25: 国有资本经营收入 | C25: 0 | D25: 0
A26: 国有资源（资产）有偿使用收入 | B26: 150,200 | C26: 157,200 | D26: 157,142 | E26: 99.96 | F26: 97.64
A27: 捐赠收入 | C27: 0 | D27: 0
A28: 政府住房基金收入 | B28: 100 | C28: 150 | D28: 145 | E28: 96.67 | F28: 89.51
A29: 其他收入 | B29: 300 | C29: 3,050 | D29: 3,067 | E29: 100.56 | F29: 1,144.40
A30: 地方一般公共预算收入 | B30: 304,200 | C30: 300,000 | D30: 300,171 | E30: 100.06 | F30: 99.35

Sheet 8.县本级一般公共预算支出决算表
A1: 2024年盐边县县本级一般公共预算支出决算表
E2: 单位：万元，%
A3: 科 目 | B3: 年初预算数 | C3: 调整预算数 | D3: 决 算 数 | E3: 为调整预算 | F3: 为上年决算
A4: 一般公共服务支出 | B4: 35,050 | C4: 39,579 | D4: 38,986 | E4: =D4/C4*100 -> 98.50 | F4: 121.66
A5: 人大事务 | B5: 1,405 | C5: 1,051 | D5: 1,051 | E5: =D5/C5*100 -> 100.00 | F5: 89.75
A6: 政协事务 | B6: 1,069 | C6: 533 | D6: 530 | E6: 99.44 | F6: 59.48
A7: 政府办公厅(室)及相关机构事务 | B7: 13,589 | C7: 21,703 | D7: 21,632 | E7: 99.67 | F7: 187.61
A8: 发展与改革事务 | B8: 836 | C8: 563 | D8: 563 | E8: 100.00 | F8: 80.77
A9: 统计信息事务 | B9: 781 | C9: 692 | D9: 692 | E9: 100.00 | F9: 106.30
A10: 财政事务 | B10: 1,451 | C10: 1,323 | D10: 1,323 | E10: 100.00 | F10: 109.43
A11: 税收事务 | B11: 1,749 | C11: 1,323 | D11: 1,323 | E11: 100.00 | F11: 90.80
A12: 审计事务 | B12: 410 | C12: 396 | D12: 396 | E12: 100.00 | F12: 115.79
A13: 海关事务 | C13: 0 | D13: 0
A14: 纪检监察事务 | B14: 2,275 | C14: 1,356 | D14: 1,356 | E14: 100.00 | F14: 101.65
A15: 商贸事务 | B15: 1,037 | C15: 782 | D15: 782 | E15: 100.00 | F15: 90.51
A16: 知识产权事务 | C16: 20 | D16: 0 | E16: 0.00
A17: 民族事务 | B17: 834 | C17: 1,261 | D17: 838 | E17: 66.46 | F17: 123.42
A18: 港澳台事务 | C18: 0 | D18: 0
A19: 档案事务 | B19: 220 | C19: 187 | D19: 187 | E19: 100.00 | F19: 102.19
A20: 民主党派及工商联事务 | B20: 120 | C20: 47 | D20: 47 | E20: 100.00 | F20: 47.00
A21: 群众团体事务 | B21: 1,627 | C21: 1,643 | D21: 1,640 | E21: 99.82 | F21: 120.94
A22: 党委办公厅(室)及相关机构事务 | B22: 2,339 | C22: 1,662 | D22: 1,662 | E22: 100.00 | F22: 85.27
A23: 组织事务 | B23: 1,652 | C23: 1,285 | D23: 1,233 | E23: 95.95 | F23: 89.54
A24: 宣传事务 | B24: 882 | C24: 873 | D24: 873 | E24: 100.00 | F24: 118.78
A25: 统战事务 | B25: 246 | C25: 196 | D25: 196 | E25: 100.00 | F25: 95.61
A26: 对外联络事务 | C26: 0 | D26: 0
A27: 其他共产党事务支出 | B27: 544 | C27: 363 | D27: 363 | E27: 100.00 | F27: 80.13
A28: 网信事务 | C28: 0 | D28: 0
A29: 市场监督管理事务 | B29: 1,737 | C29: 1,621 | D29: 1,621 | E29: 100.00 | F29: 115.46
A30: 社会工作事务 | C30: 105 | D30: 84 | E30: 80.00
A31: 信访事务 | B31: 247 | C31: 378 | D31: 378 | E31: 100.00
A32: 其他一般公共服务支出 | C32: 216 | D32: 216 | E32: 100.00 | F32: 6.25
A33: 外交支出 | B33: 0 | C33: 0 | D33: 0
A34: 外交管理事务 | C34: 0 | D34: 0
A35: 驻外机构 | C35: 0 | D35: 0
A36: 对外援助 | C36: 0 | D36: 0
A37: 国际组织 | C37: 0 | D37: 0
A38: 对外合作与交流 | C38: 0 | D38: 0
A39: 对外宣传 | C39: 0 | D39: 0
A40: 边界勘界联检 | C40: 0 | D40: 0
A41: 国际发展合作 | C41: 0 | D41: 0
A42: 其他外交支出 | C42: 0 | D42: 0
A43: 国防支出 | B43: 400 | C43: 120 | D43: 120 | E43: 100.00 | F43: 104.35
A44: 军费 | C44: 0 | D44: 0
A45: 国防科研事业 | C45: 0 | D45: 0
A46: 专项工程 | C46: 0 | D46: 0
A47: 国防动员 | B47: 300 | C47: 120 | D47: 120 | E47: 100.00 | F47: 279.07
A48: 其他国防支出 | B48: 100 | C48: 0 | D48: 0 | F48: 0.00
A49: 公共安全支出 | B49: 14,776 | C49: 14,520 | D49: 13,515 | E49: 93.08 | F49: 117.25
A50: 武装警察部队 | B50: 23 | C50: 0 | D50: 0 | F50: 0.00
A51: 公安 | B51: 8,821 | C51: 6,640 | D51: 6,640 | E51: 100.00 | F51: 101.14
A52: 国家安全 | C52: 0 | D52: 0
A53: 检察 | B53: 157 | C53: 130 | D53: 130 | E53: 100.00 | F53: 99.24
A54: 法院 | B54: 328 | C54: 267 | D54: 267 | E54: 100.00 | F54: 97.80
A55: 司法 | B55: 1,108 | C55: 949 | D55: 949 | E55: 100.00 | F55: 102.82
A56: 监狱 | C56: 0 | D56: 0
A57: 强制隔离戒毒 | C57: 0 | D57: 0
A58: 国家保密 | C58: 0 | D58: 0
A59: 缉私警察 | C59: 0 | D59: 0
A60: 其他公共安全支出 | B60: 4,339 | C60: 6,534 | D60: 5,529 | E60: 84.62 | F60: 152.90
A61: 教育支出 | B61: 45,157 | C61: 44,376 | D61: 37,286 | E61: 84.02 | F61: 100.86
A62: 教育管理事务 | B62: 1,444 | C62: 961 | D62: 961 | E62: 100.00 | F62: 79.88
A63: 普通教育 | B63: 37,268 | C63: 36,545 | D63: 32,266 | E63: 88.29 | F63: 103.87
A64: 职业教育 | B64: 26 | C64: 1 | D64: 0 | E64: 0.00 | F64: 0.00
A65: 成人教育 | C65: 0 | D65: 0
A66: 广播电视教育 | C66: 0 | D66: 0
A67: 留学教育 | C67: 0 | D67: 0
A68: 特殊教育 | C68: 25 | D68: 0
A69: 进修及培训 | B69: 160 | C69: 585 | D69: 550 | E69: =D69/C69*100 -> 94.02 | F69: 604.40
A70: 教育费附加安排的支出 | B70: 6,259 | C70: 6,259 | D70: 3,509 | E70: 56.06 | F70: 76.48
A71: 其他教育支出 | C71: 0 | D71: 0
A72: 科学技术支出 | B72: 3,093 | C72: 914 | D72: 836 | E72: 91.47 | F72: 37.52
A73: 科学技术管理事务 | B73: 769 | C73: 522 | D73: 522 | E73: 100.00 | F73: 81.44
A74: 基础研究 | C74: 0 | D74: 0
A75: 应用研究 | C75: 0 | D75: 0
A76: 技术研究与开发 | B76: 19 | C76: 18 | D76: 18 | E76: 100.00 | F76: 1,800.00
A77: 科技条件与服务 | B77: 1,000 | C77: 0 | D77: 0 | F77: 0.00
A78: 社会科学 | C78: 0 | D78: 0
A79: 科学技术普及 | B79: 302 | C79: 324 | D79: 246 | E79: 75.93 | F79: 123.00
A80: 科技交流与合作 | C80: 0 | D80: 0
A81: 科技重大项目 | C81: 0 | D81: 0
A82: 其他科学技术支出 | B82: 1,003 | C82: 50 | D82: 50 | E82: 100.00 | F82: 5.98
A83: 文化旅游体育与传媒支出 | B83: 9,938 | C83: 5,673 | D83: 4,461 | E83: 78.64 | F83: 94.73
A84: 文化和旅游 | B84: 8,022 | C84: 3,817 | D84: 2,605 | E84: 68.25 | F84: 83.98
A85: 文物 | C85: 0 | D85: 0
A86: 体育 | B86: 998 | C86: 402 | D86: 402 | E86: 100.00 | F86: 46.10
A87: 新闻出版电影 | C87: 0 | D87: 0
A88: 广播电视 | B88: 662 | C88: 877 | D88: 877 | E88: 100.00 | F88: 168.01
A89: 其他文化旅游体育与传媒支出 | B89: 256 | C89: 577 | D89: 577 | E89: 100.00 | F89: 270.89
A90: 社会保障和就业支出 | B90: 44,414 | C90: 45,023 | D90: 44,347 | E90: 98.50 | F90: 134.61
A91: 人力资源和社会保障管理事务 | B91: 3,066 | C91: 2,647 | D91: 2,647 | E91: 100.00 | F91: 104.67
A92: 民政管理事务 | B92: 2,618 | C92: 1,921 | D92: 1,921 | E92: 100.00 | F92: 88.12
A93: 补充全国社会保障基金 | C93: 0 | D93: 0
A94: 行政事业单位养老支出 | B94: 17,300 | C94: 15,439 | D94: 15,439 | E94: 100.00 | F94: 107.09
A95: 企业改革补助 | C95: 0 | D95: 0
A96: 就业补助 | B96: 883 | C96: 931 | D96: 866 | E96: 93.02 | F96: 117.66
A97: 抚恤 | B97: 3,512 | C97: 3,022 | D97: 2,550 | E97: 84.38 | F97: 87.12
A98: 退役安置 | B98: 317 | C98: 425 | D98: 350 | E98: 82.35 | F98: 159.82
A99: 社会福利 | B99: 996 | C99: 1,118 | D99: 1,054 | E99: 94.28 | F99: 125.18
A100: 残疾人事业 | B100: 1,442 | C100: 1,286 | D100: 1,286 | E100: 100.00 | F100: 99.61
A101: 红十字事业 | C101: 59 | D101: 59 | E101: 100.00 | F101: 81.94
A102: 最低生活保障 | B102: 5,652 | C102: 4,719 | D102: 4,719 | E102: 100.00 | F102: 100.19
A103: 临时救助 | B103: 246 | C103: 267 | D103: 267 | E103: 100.00 | F103: 130.24
A104: 特困人员救助供养 | B104: 1,364 | C104: 1,170 | D104: 1,170 | E104: 100.00 | F104: 102.90
A105: 补充道路交通事故社会救助基金 | C105: 0 | D105: 0
A106: 其他生活救助 | C106: 245 | D106: 245 | E106: 100.00
A107: 财政对基本养老保险基金的补助 | B107: 833 | C107: 1,026 | D107: 1,026 | E107: 100.00 | F107: 147.84
A108: 财政对其他社会保险基金的补助 | C108: 0 | D108: 0
A109: 退役军人管理事务 | B109: 641 | C109: 590 | D109: 590 | E109: 100.00 | F109: 110.90
A110: 财政代缴社会保险费支出 | B110: 156 | C110: 112 | D110: 112 | E110: 100.00 | F110: 86.15
A111: 其他社会保障和就业支出 | B111: 5,388 | C111: 10,046 | D111: 10,046 | E111: 100.00 | F111: 3,110.22
A112: 卫生健康支出 | B112: 32,272 | C112: 20,195 | D112: 19,977 | E112: 98.92 | F112: 87.90
A113: 卫生健康管理事务 | B113: 509 | C113: 457 | D113: 457 | E113: 100.00 | F113: 108.04
A114: 公立医院 | B114: 3,218 | C114: 2,821 | D114: 2,821 | E114: 100.00 | F114: 105.18
A115: 基层医疗卫生机构 | B115: 3,470 | C115: 2,649 | D115: 2,645 | E115: 99.85 | F115: 91.46
A116: 公共卫生 | B116: 4,766 | C116: 3,569 | D116: 3,388 | E116: 94.93 | F116: 85.30
A117: 计划生育事务 | B117: 1,376 | C117: 1,099 | D117: 1,099 | E117: 100.00 | F117: 95.82
A118: 行政事业单位医疗 | B118: 8,760 | C118: 7,230 | D118: 7,230 | E118: 100.00 | F118: 99.04
A119: 财政对基本医疗保险基金的补助 | B119: 985 | C119: 871 | D119: 871 | E119: 100.00 | F119: 106.09
A120: 医疗救助 | B120: 214 | C120: 176 | D120: 176 | E120: 100.00 | F120: 98.88
A121: 优抚对象医疗 | B121: 62 | C121: 47 | D121: 47 | E121: 100.00 | F121: 90.38
A122: 医疗保障管理事务 | B122: 354 | C122: 314 | D122: 314 | E122: 100.00 | F122: 106.44
A123: 老龄卫生健康事务 | B123: 12 | C123: 0 | D123: 0 | F123: 0.00
A124: 中医药事务 | B124: 252 | C124: 16 | D124: 16 | E124: 100.00 | F124: 7.62
A125: 疾病预防控制事务 | C125: 10 | D125: 10 | E125: 100.00
A126: 其他卫生健康支出 | B126: 8,294 | C126: 936 | D126: 903 | E126: 96.47 | F126: 32.90
A127: 节能环保支出 | B127: 8,122 | C127: 30,297 | D127: 25,669 | E127: 84.72 | F127: 373.91
A128: 环境保护管理事务 | B128: 294 | C128: 214 | D128: 214 | E128: 100.00 | F128: 87.35
A129: 环境监测与监察 | B129: 26 | C129: 29 | D129: 29 | E129: 100.00 | F129: 138.10
A130: 污染防治 | B130: 4,310 | C130: 15,745 | D130: 15,136 | E130: 96.13 | F130: 421.38
A131: 自然生态保护 | B131: 1,040 | C131: 558 | D131: 358 | E131: 64.16 | F131: 41.29
A132: 森林保护修复 | B132: 565 | C132: 148 | D132: 148 | E132: 100.00 | F132: 31.42
A133: 风沙荒漠治理 | C133: 0 | D133: 0
A134: 退牧还草 | C134: 0 | D134: 0
A135: 已垦草原退耕还草 | C135: 0 | D135: 0
A136: 能源节约利用 | C136: 1,800 | D136: 0
A137: 污染减排 | C137: 0 | D137: 0
A138: 可再生能源 | C138: 0 | D138: 0
A139: 循环经济 | C139: 0 | D139: 0
A140: 能源管理事务 | C140: 0 | D140: 0
A141: 其他节能环保支出 | B141: 1,887 | C141: 11,803 | D141: 9,784 | E141: =D141/C141*100 -> 82.89 | F141: 1,480.18
A142: 城乡社区支出 | B142: 11,887 | C142: 16,016 | D142: 12,366 | E142: 77.21 | F142: 124.85
A143: 城乡社区管理事务 | B143: 1,642 | C143: 1,147 | D143: 1,147 | E143: 100.00 | F143: 83.85
A144: 城乡社区规划与管理 | B144: 139 | C144: 285 | D144: 285 | E144: 100.00 | F144: 245.69
A145: 城乡社区公共设施 | B145: 1,829 | C145: 9,924 | D145: 6,289 | E145: 63.37 | F145: 412.66
A146: 城乡社区环境卫生 | B146: 4,127 | C146: 3,424 | D146: 3,424 | E146: 100.00 | F146: 99.56
A147: 建设市场管理与监督 | C147: 0 | D147: 0
A148: 其他城乡社区支出 | B148: 4,150 | C148: 1,236 | D148: 1,221 | E148: 98.79 | F148: 35.31
A149: 农林水支出 | B149: 66,512 | C149: 103,178 | D149: 76,615 | E149: 74.26 | F149: 139.30
A150: 农业农村 | B150: 15,711 | C150: 13,781 | D150: 9,547 | E150: 69.28 | F150: 79.28
A151: 林业和草原 | B151: 10,925 | C151: 7,689 | D151: 5,414 | E151: 70.41 | F151: 66.87
A152: 水利 | B152: 13,929 | C152: 22,183 | D152: 14,137 | E152: 63.73 | F152: 239.37
A153: 巩固脱贫攻坚成果衔接乡村振兴 | B153: 8,309 | C153: 9,326 | D153: 7,074 | E153: 75.85 | F153: 76.05
A154: 农村综合改革 | B154: 10,458 | C154: 9,474 | D154: 7,695 | E154: 81.22 | F154: 158.46
A155: 普惠金融发展支出 | B155: 2,536 | C155: 4,084 | D155: 2,341 | E155: 57.32 | F155: 96.42
A156: 目标价格补贴 | B156: 144 | C156: 135 | D156: 0 | E156: 0.00 | F156: 0.00
A157: 其他农林水支出 | B157: 4,500 | C157: 36,506 | D157: 30,407 | E157: 83.29 | F157: 248.20
A158: 交通运输支出 | B158: 13,361 | C158: 21,220 | D158: 10,985 | E158: 51.77 | F158: 166.72
A159: 公路水路运输 | B159: 12,931 | C159: 21,020 | D159: 10,785 | E159: 51.31 | F159: 173.09
A160: 铁路运输 | C160: 200 | D160: 200 | E160: 100.00
A161: 民用航空运输 | C161: 0 | D161: 0
A162: 邮政业支出 | C162: 0 | D162: 0
A163: 其他交通运输支出 | B163: 430 | C163: 0 | D163: 0 | F163: 0.00
A164: 资源勘探工业信息等支出 | B164: 180 | C164: 7,999 | D164: 7,999 | E164: 100.00
A165: 资源勘探开发 | C165: 0 | D165: 0
A166: 制造业 | B166: 180 | C166: 1,200 | D166: 1,200 | E166: 100.00 | F166: 800.00
A167: 建筑业 | C167: 0 | D167: 0
A168: 工业和信息产业监管 | C168: 0 | D168: 0
A169: 国有资产监管 | C169: 0 | D169: 0
A170: 支持中小企业发展和管理支出 | C170: 0 | D170: 0
A171: 其他资源勘探工业信息等支出 | C171: 6,799 | D171: 6,799 | E171: 100.00
A172: 商业服务业等支出 | B172: 1,463 | C172: 2,827 | D172: 2,635 | E172: 93.21 | F172: 216.16
A173: 商业流通事务 | B173: 1,272 | C173: 1,425 | D173: 1,236 | E173: 86.74 | F173: 116.60
A174: 涉外发展服务支出 | C174: 3 | D174: 0 | E174: 0.00
A175: 其他商业服务业等支出 | B175: 191 | C175: 1,399 | D175: 1,399 | E175: 100.00 | F175: 879.87
A176: 金融支出 | B176: 100 | C176: 369 | D176: 11 | E176: 2.98 | F176: 11.34
A177: 金融部门行政支出 | C177: 0 | D177: 0
A178: 金融部门监管支出 | C178: 0 | D178: 0
A179: 金融发展支出 | B179: 100 | C179: 0 | D179: 0
A180: 金融调控支出 | C180: 0 | D180: 0
A181: 其他金融支出 | C181: 369 | D181: 11 | E181: 2.98
A182: 援助其他地区支出 | B182: 0 | C182: 0 | D182: 0
A183: 一般公共服务 | C183: 0 | D183: 0
A184: 教育 | C184: 0 | D184: 0
A185: 文化旅游体育与传媒 | C185: 0 | D185: 0
A186: 卫生健康 | C186: 0 | D186: 0
A187: 节能环保 | C187: 0 | D187: 0
A188: 农业农村 | C188: 0 | D188: 0
A189: 交通运输 | C189: 0 | D189: 0
A190: 住房保障 | C190: 0 | D190: 0
A191: 其他支出 | C191: 0 | D191: 0
A192: 自然资源海洋气象等支出 | B192: 6,307 | C192: 6,522 | D192: 6,363 | E192: 97.56 | F192: 121.06
A193: 自然资源事务 | B193: 5,701 | C193: 6,039 | D193: 6,039 | E193: 100.00 | F193: 127.11
A194: 气象事务 | B194: 606 | C194: 324 | D194: 324 | E194: 100.00 | F194: 64.16
A195: 其他自然资源海洋气象等支出 | C195: 159 | D195: 0 | E195: 0.00
A196: 住房保障支出 | B196: 31,075 | C196: 18,678 | D196: 17,879 | E196: 95.72 | F196: 80.97
A197: 保障性安居工程支出 | B197: 17,159 | C197: 11,617 | D197: 10,818 | E197: 93.12 | F197: 78.29
A198: 住房改革支出 | B198: 8,632 | C198: 7,023 | D198: 7,023 | E198: 100.00 | F198: 97.64
A199: 城乡社区住宅 | B199: 5,284 | C199: 38 | D199: 38 | E199: 100.00 | F199: 3.55
A200: 粮油物资储备支出 | B200: 1,109 | C200: 561 | D200: 557 | E200: 99.29 | F200: 63.73
... 25 more rows

Sheet 9.县本级一般公共预算收支决算平衡表
A1: 2024年盐边县县本级一般公共预算收支决算平衡表
A2: 单位：万元
A3: 科 目 | B3: 决 算 数 | C3: 科 目 | D3: 决 算 数
A4: 一般公共预算收入 | B4: 300171 | C4: 一般公共预算支出 | D4: 332775
A5: 上级补助收入 | B5: 130433 | C5: 补助下级支出 | D5: 0
A6: 返还性收入 | B6: -679 | C6: 返还性支出 | D6: 0
A7: 所得税基数返还收入 | B7: -63 | C7: 所得税基数返还支出
A8: 成品油税费改革税收返还收入 | B8: 1124 | C8: 成品油税费改革税收返还支出
A9: 增值税税收返还收入 | B9: 3926 | C9: 增值税税收返还支出
A10: 消费税税收返还收入 | C10: 消费税税收返还支出
A11: 增值税“五五分享”税收返还收入 | B11: -5487 | C11: 增值税“五五分享”税收返还支出
A12: 其他返还性收入 | B12: -179 | C12: 其他返还性支出
A13: 一般性转移支付收入 | B13: 110588 | C13: 一般性转移支付支出 | D13: 0
A14: 体制补助收入 | C14: 体制补助支出
A15: 均衡性转移支付收入 | B15: 31902 | C15: 均衡性转移支付支出
A16: 县级基本财力保障机制奖补资金收入 | B16: 5332 | C16: 县级基本财力保障机制奖补资金支出
A17: 结算补助收入 | B17: 2776 | C17: 结算补助支出
A18: 资源枯竭型城市转移支付补助收入 | C18: 资源枯竭型城市转移支付补助支出
A19: 企业事业单位划转补助收入 | B19: 42 | C19: 企业事业单位划转补助支出
A20: 产粮(油)大县奖励资金收入 | C20: 产粮(油)大县奖励资金支出
A21: 重点生态功能区转移支付收入 | B21: 1590 | C21: 重点生态功能区转移支付支出
A22: 固定数额补助收入 | B22: 11526 | C22: 固定数额补助支出
A23: 革命老区转移支付收入 | C23: 革命老区转移支付支出
A24: 民族地区转移支付收入 | C24: 民族地区转移支付支出
A25: 边境地区转移支付收入 | C25: 边境地区转移支付支出
A26: 巩固脱贫攻坚成果衔接乡村振兴转移支付收入 | B26: 6779 | C26: 巩固脱贫攻坚成果衔接乡村振兴转移支付支出
A27: 一般公共服务共同财政事权转移支付收入 | C27: 一般公共服务共同财政事权转移支付支出
A28: 外交共同财政事权转移支付收入 | C28: 外交共同财政事权转移支付支出
A29: 国防共同财政事权转移支付收入 | C29: 国防共同财政事权转移支付支出
A30: 公共安全共同财政事权转移支付收入 | B30: 1199 | C30: 公共安全共同财政事权转移支付支出
A31: 教育共同财政事权转移支付收入 | B31: 6616 | C31: 教育共同财政事权转移支付支出
A32: 科学技术共同财政事权转移支付收入 | B32: 44 | C32: 科学技术共同财政事权转移支付支出
A33: 文化旅游体育与传媒共同财政事权转移支付收入 | B33: 1228 | C33: 文化旅游体育与传媒共同财政事权转移支付支出
A34: 社会保障和就业共同财政事权转移支付收入 | B34: 6855 | C34: 社会保障和就业共同财政事权转移支付支出
A35: 医疗卫生共同财政事权转移支付收入 | B35: 3155 | C35: 医疗卫生共同财政事权转移支付支出
A36: 节能环保共同财政事权转移支付收入 | B36: 1712 | C36: 节能环保共同财政事权转移支付支出
A37: 城乡社区共同财政事权转移支付收入 | C37: 城乡社区共同财政事权转移支付支出
A38: 农林水共同财政事权转移支付收入 | B38: 21570 | C38: 农林水共同财政事权转移支付支出
A39: 交通运输共同财政事权转移支付收入 | B39: 6582 | C39: 交通运输共同财政事权转移支付支出
A40: 资源勘探工业信息等共同财政事权转移支付收入 | C40: 资源勘探工业信息等共同财政事权转移支付支出
A41: 商业服务业等共同财政事权转移支付收入 | C41: 商业服务业等共同财政事权转移支付支出
A42: 金融共同财政事权转移支付收入 | C42: 金融共同财政事权转移支付支出
A43: 自然资源海洋气象等共同财政事权转移支付收入 | C43: 自然资源海洋气象等共同财政事权转移支付支出
A44: 住房保障共同财政事权转移支付收入 | B44: 212 | C44: 住房保障共同财政事权转移支付支出
A45: 粮油物资储备共同财政事权转移支付收入 | C45: 粮油物资储备共同财政事权转移支付支出
A46: 灾害防治及应急管理共同财政事权转移支付收入 | B46: 178 | C46: 灾害防治及应急管理共同财政事权转移支付支出
A47: 其他共同财政事权转移支付收入 | C47: 其他共同财政事权转移支付支出
A48: 其他一般性转移支付收入 | B48: 1290 | C48: 其他一般性转移支付支出
A49: 专项转移支付收入 | B49: 20524 | C49: 专项转移支付支出 | D49: 0
A50: 一般公共服务 | B50: 20 | C50: 一般公共服务
A51: 外交 | C51: 外交
A52: 国防 | C52: 国防
A53: 公共安全 | B53: 20 | C53: 公共安全
A54: 教育 | C54: 教育
A55: 科学技术 | B55: 50 | C55: 科学技术
A56: 文化旅游体育与传媒 | B56: 52 | C56: 文化旅游体育与传媒
A57: 社会保障和就业 | B57: 800 | C57: 社会保障和就业
A58: 卫生健康 | B58: 179 | C58: 卫生健康
A59: 节能环保 | B59: 4363 | C59: 节能环保
A60: 城乡社区 | B60: 3621 | C60: 城乡社区
A61: 农林水 | B61: 5849 | C61: 农林水
A62: 交通运输 | B62: 774 | C62: 交通运输
A63: 资源勘探工业信息等 | C63: 资源勘探工业信息等
A64: 商业服务业等 | B64: 192 | C64: 商业服务业等
A65: 金融 | B65: 358 | C65: 金融
A66: 自然资源海洋气象等 | C66: 自然资源海洋气象等
A67: 住房保障 | C67: 住房保障
A68: 粮油物资储备 | B68: 9 | C68: 粮油物资储备
A69: 灾害防治及应急管理 | B69: 4237 | C69: 灾害防治及应急管理
A70: 其他收入 | C70: 其他支出
A71: 下级上解收入 | B71: 0 | C71: 上解上级支出 | D71: 86856
A72: 体制上解收入 | C72: 体制上解支出 | D72: 11
A73: 专项上解收入 | C73: 专项上解支出 | D73: 86845
A74: 待偿债再融资一般债券上年结余
A75: 上年结余收入 | B75: 34933
A76: 调入资金 | B76: 0 | C76: 调出资金 | D76: 0
A77: 从政府性基金预算调入 | C77: 调出用于补充超长期特别国债偿债备付金的资金
A78: 从国有资本经营预算调入 | C78: 调出用于偿还超长期特别国债本金的资金
A79: 从其他资金调入 | C79: 其他调出资金
A80: 债务收入 | B80: 0 | C80: 债务还本支出 | D80: 9164
A81: 地方政府债务收入 | B81: 0 | C81: 地方政府一般债务还本支出 | D81: 9164
A82: 一般债务收入 | B82: 0 | C82: 地方政府一般债券还本支出 | D82: 9164
A83: 地方政府一般债券收入 | C83: 地方政府向外国政府借款还本支出
A84: 地方政府向外国政府借款收入 | C84: 地方政府向国际组织借款还本支出
A85: 地方政府向国际组织借款收入 | C85: 地方政府其他一般债务还本支出
A86: 地方政府其他一般债务收入
A87: 债务转贷收入 | B87: 16478 | C87: 债务转贷支出 | D87: 0
A88: 地方政府一般债务转贷收入 | B88: 16478 | C88: 地方政府一般债券转贷支出
A89: 地方政府一般债券转贷收入 | B89: 16478 | C89: 地方政府向外国政府借款转贷支出
A90: 地方政府向外国政府借款转贷收入 | C90: 地方政府向国际组织借款转贷支出
A91: 地方政府向国际组织借款转贷收入 | C91: 地方政府其他一般债务转贷支出
A92: 地方政府其他一般债务转贷收入
A93: 国债转贷收入 | C93: 补充预算周转金
A94: 国债转贷资金上年结余 | C94: 拨付国债转贷资金数
A95: 国债转贷转补助数 | C95: 国债转贷资金结余
A96: 动用预算稳定调节基金 | B96: 19341 | C96: 安排预算稳定调节基金 | D96: 14843
A97: 区域间转移性收入 | B97: 0 | C97: 区域间转移性支出 | D97: 0
A98: 接受其他地区援助收入 | B98: 0 | C98: 援助其他地区支出 | D98: 0
A99: 接受其他省(自治区、直辖市、计划单列市)援助收入 | C99: 援助其他省(自治区、直辖市、计划单列市)支出
A100: 接受省内其他地市(区)援助收入 | C100: 援助省内其他地市(区)支出
A101: 接受市内其他县市(区)援助收入 | C101: 援助市内其他县市(区)支出
A102: 生态保护补偿转移性收入 | B102: 0 | C102: 生态保护补偿转移性支出 | D102: 0
A103: 其他省(自治区、直辖市、计划单列市)横向生态保护补偿转移性收入 | C103: 其他省(自治区、直辖市、计划单列市)横向生态保护补偿转移性支出
A104: 省内其他地市(区)横向生态保护补偿转移性收入 | C104: 省内其他地市(区)横向生态保护补偿转移性支出
A105: 市内其他县市(区)横向生态保护补偿转移性收入 | C105: 市内其他县市(区)横向生态保护补偿转移性支出
A106: 土地指标调剂转移性收入 | B106: 0 | C106: 土地指标调剂转移性支出 | D106: 0
A107: 其他省(自治区、直辖市、计划单列市)横向土地指标调剂转移性收入 | C107: 其他省(自治区、直辖市、计划单列市)横向土地指标调剂转移性支出
A108: 省内其他地市(区)横向土地指标调剂转移性收入 | C108: 省内其他地市(区)横向土地指标调剂转移性支出
A109: 市内其他县市(区)横向土地指标调剂转移性收入 | C109: 市内其他县市(区)横向土地指标调剂转移性支出
A110: 其他转移性收入 | B110: 0 | C110: 其他转移性支出 | D110: 0
A111: 其他省(自治区、直辖市、计划单列市)其他转移性收入 | C111: 其他省(自治区、直辖市、计划单列市)其他转移性支出
A112: 省内其他地市(区)其他转移性收入 | C112: 省内其他地市(区)其他转移性支出
A113: 市内其他县市(区)其他转移性收入 | C113: 市内其他县市(区)其他转移性支出
A114: 省补助计划单列市收入 | C114: 计划单列市上解省支出
A115: 计划单列市上解省收入 | C115: 省补助计划单列市支出
C116: 待偿债再融资一般债券结余
C117: 年终结余 | D117: 57718
C118: 减:结转下年的支出 | D118: 57718
C119: 净结余 | D119: 0
A120: 收 入 总 计 | B120: 501356 | C120: 支 出 总 计 | D120: 501356

Sheet 10.县本级一般公共预算经济分类支出决算表
A1: 2024年盐边县县本级一般公共预算经济分类支出决算表
E2: 单位：万元，%
A3: 科 目 | B3: 年初预算数 | C3: 调整预算数 | D3: 决 算 数 | E3: 为调整预算 | F3: 为上年决算
A4: 机关工资福利支出 | B4: 46,284 | C4: 33,048 | D4: 32,859 | E4: 99.43 | F4: 95.50
A5: 工资奖金津补贴 | B5: 30,768 | C5: 21,300 | D5: 21,240 | E5: 99.72 | F5: 96.48
A6: 社会保障缴费 | B6: 8,656 | C6: 7,000 | D6: 6,953 | E6: 99.33 | F6: 101.76
A7: 住房公积金 | B7: 3,194 | C7: 2,560 | D7: 2,478 | E7: 96.80 | F7: 95.75
A8: 其他工资福利支出 | B8: 3,666 | C8: 2,188 | D8: 2,188 | E8: 100.00 | F8: 73.65
A9: 机关商品和服务支出 | B9: 54,878 | C9: 54,312 | D9: 42,010 | E9: 77.35 | F9: 106.94
A10: 办公经费 | B10: 11,106 | C10: 10,905 | D10: 10,905 | E10: 100.00 | F10: 121.52
A11: 会议费 | B11: 350 | C11: 252 | D11: 252 | E11: 100.00 | F11: 21.93
A12: 培训费 | B12: 465 | C12: 348 | D12: 348 | E12: 100.00 | F12: 70.30
A13: 专用材料购置费 | B13: 1,855 | C13: 1,912 | D13: 1,912 | E13: 100.00 | F13: 127.21
A14: 委托业务费 | B14: 21,782 | C14: 23,464 | D14: 23,464 | E14: 100.00 | F14: 132.93
A15: 公务接待费 | B15: 65 | C15: 150 | D15: 149 | E15: 99.33 | F15: 100.68
A16: 因公出国（境）费用 | C16: 9 | D16: 9
A17: 公务用车运行维护费 | B17: 560 | C17: 562 | D17: 562 | E17: 100.00 | F17: 103.31
A18: 维修（护）费 | B18: 1,855 | C18: 3,140 | D18: 1,140 | E18: 36.31 | F18: 75.85
A19: 其他商品和服务支出 | B19: 16,840 | C19: 13,570 | D19: 3,269 | E19: 24.09 | F19: 44.69
A20: 机关资本性支出（一） | B20: 67,694 | C20: 158,416 | D20: 114,769 | E20: 72.45 | F20: 222.20
A21: 房屋建筑物购建 | B21: 3,955 | C21: 2,662 | D21: 2,662 | E21: 100.00 | F21: 83.06
A22: 基础设施建设 | B22: 50,034 | C22: 110,963 | D22: 90,963 | E22: 81.98 | F22: 227.53
A23: 公务用车购置 | B23: 200 | C23: 196 | D23: 90 | E23: 45.92 | F23: 46.39
A24: 土地征迁补偿和安置支出 | B24: 3,164 | C24: 23,926 | D24: 13,926 | E24: 58.20 | F24: 543.14
A25: 设备购置 | B25: 3,792 | C25: 3,186 | D25: 3,186 | E25: 100.00 | F25: 103.68
A26: 大型修缮 | B26: 1,117 | C26: 1,050 | D26: 1,002 | E26: 95.43 | F26: 110.72
A27: 其他资本性支出 | B27: 5,432 | C27: 16,433 | D27: 2,940 | E27: 17.89 | F27: 169.84
A28: 机关资本性支出（二） | B28: 13,428 | C28: 4,640 | D28: 4,380 | E28: 94.40 | F28: 99.34
A29: 房屋建筑物购建 | B29: 901 | C29: 125 | D29: 125 | E29: 100.00 | F29: 17.12
A30: 基础设施建设 | B30: 11,828 | C30: 3,365 | D30: 3,282 | E30: 97.53 | F30: 105.46
A31: 公务用车购置
A32: 设备购置 | B32: 678 | C32: 1,100 | D32: 930 | E32: 84.55 | F32: 169.09
A33: 大型修缮 | B33: 12 | F33: 0.00
A34: 其他资本性支出 | B34: 9 | C34: 50 | D34: 43 | E34: 86.00 | F34: 614.29
A35: 对事业单位经常性补助 | B35: 83,685 | C35: 64,362 | D35: 63,766 | E35: 99.07 | F35: 94.03
A36: 工资福利支出 | B36: 69,923 | C36: 55,012 | D36: 54,679 | E36: 99.39 | F36: 96.50
A37: 商品和服务支出 | B37: 13,762 | C37: 9,350 | D37: 9,087 | E37: 97.19 | F37: 81.48
A38: 其他对事业单位补助
A39: 对事业单位资本性补助 | B39: 6,444 | C39: 2,981 | D39: 2,981 | E39: 100.00 | F39: 57.09
A40: 资本性支出（一） | B40: 6,444 | C40: 2,981 | D40: 2,981 | E40: 100.00 | F40: 57.09
A41: 资本性支出（二）
A42: 对企业补助 | B42: 3,659 | C42: 14,548 | D42: 14,330 | E42: 98.50 | F42: 220.53
A43: 费用补贴 | B43: 500 | C43: 3,548 | D43: 3,548 | E43: 100.00 | F43: 90.10
A44: 利息补贴 | B44: 23 | F44: 0.00
A45: 其他对企业补助 | B45: 3,136 | C45: 11,000 | D45: 10,782 | E45: 98.02 | F45: 424.32
A46: 对企业资本性支出 | B46: 10,000 | C46: 16,550 | D46: 16,445 | E46: 99.37 | F46: 254.06
A47: 对企业资本性支出（一） | B47: 10,000 | C47: 16,400 | D47: 16,320 | E47: 99.51 | F47: 252.12
A48: 对企业资本性支出（二）
A49: 政府投资基金股权投资
A50: 其他对企业资本性支出 | C50: 150 | D50: 125
A51: 对个人和家庭的补助 | B51: 48,466 | C51: 35,067 | D51: 34,666 | E51: 98.86 | F51: 88.13
A52: 社会福利和救助 | B52: 33,950 | C52: 25,981 | D52: 25,763 | E52: 99.16 | F52: 93.70
A53: 助学金 | B53: 1,425 | C53: 1,026 | D53: 1,026 | E53: 100.00 | F53: 88.83
A54: 个人农业生产补贴 | B54: 8,663 | C54: 5,923 | D54: 5,824 | E54: 98.33 | F54: 82.96
A55: 离退休费 | B55: 202 | C55: 123 | D55: 123 | E55: 100.00 | F55: 75.00
A56: 其他对个人和家庭补助 | B56: 4,226 | C56: 2,014 | D56: 1,930 | E56: 95.83 | F56: 55.11
A57: 对社会保障基金补助 | B57: 1,867 | C57: 1,897 | D57: 1,897 | E57: 100.00 | F57: 125.21
A58: 对社会保险基金补助 | B58: 1,867 | C58: 1,897 | D58: 1,897 | E58: 100.00 | F58: 125.21
A59: 补充全国社会保障基金
A60: 对机关事业单位职业年金的补助
A61: 债务利息及费用支出 | B61: 4,825 | C61: 4,672 | D61: 4,672 | E61: 100.00 | F61: 98.21
A62: 国内债务付息 | B62: 4,800 | C62: 4,661 | D62: 4,661 | E62: 100.00 | F62: 98.40
A63: 国外债务付息
A64: 国内债务发行费用 | B64: 25 | C64: 11 | D64: 11 | E64: 100.00 | F64: 55.00
A65: 国外债务发行费用
A66: 预备费及预留 | B66: 3,500 | D66: 0
A67: 预备费 | B67: 3,500
A68: 预留
A69: 其他支出
A70: 国家赔偿费用支出
A71: 对民间非营利组织和群众性自治组织补贴
A72: 经常性赠与 | D72: 0
A73: 资本性赠与 | D73: 0
A74: 其他支出 | F74: 0.00
A75: 一般公共预算支出 | B75: 344,730 | C75: 390,493 | D75: 332,775 | E75: 85.22 | F75: 126.14

Sheet 11.县本级一般公共预算经济分类科目（基本）支出决算表
A1: 2024年盐边县县本级一般公共预算经济分类（基本）支出决算表
E2: 单位：万元，%
A3: 科 目 | B3: 年初预算数 | C3: 调整预算数 | D3: 决 算 数 | E3: 为调整预算 | F3: 为上年决算
A4: 机关工资福利支出 | B4: 33,660 | C4: 33,840 | D4: 32,859 | E4: 97.10 | F4: 97.10
A5: 工资奖金津补贴 | B5: 22,000 | C5: 21,543 | D5: 21,240 | E5: 98.59 | F5: 98.59
A6: 社会保障缴费 | B6: 6,900 | C6: 6,833 | D6: 6,953 | E6: 101.76 | F6: 101.76
A7: 住房公积金 | B7: 2,560 | C7: 2,588 | D7: 2,478 | E7: 95.75 | F7: 95.75
A8: 其他工资福利支出 | B8: 2,200 | C8: 2,876 | D8: 2,188 | E8: 76.08 | F8: 76.08
A9: 机关商品和服务支出 | B9: 6,276 | C9: 5,217 | D9: 5,874 | E9: 112.59 | F9: 112.59
A10: 办公经费 | B10: 3,680 | C10: 3,782 | D10: 3,545 | E10: 93.73 | F10: 93.73
A11: 会议费 | B11: 50 | C11: 32 | D11: 38 | E11: 118.75 | F11: 118.75
A12: 培训费 | B12: 60 | C12: 21 | D12: 27 | E12: 128.57 | F12: 128.57
A13: 专用材料购置费 | B13: 165 | C13: 130 | D13: 149 | E13: 114.62 | F13: 114.62
A14: 委托业务费 | B14: 1,500 | C14: 503 | D14: 1,415 | E14: 281.31 | F14: 281.31
A15: 公务接待费 | B15: 37 | C15: 8 | D15: 6 | E15: 75.00 | F15: 75.00
A16: 因公出国（境）费用
A17: 公务用车运行维护费 | B17: 424 | C17: 424 | D17: 386 | E17: 91.04 | F17: 91.04
A18: 维修（护）费 | B18: 185 | C18: 97 | D18: 151 | E18: 155.67 | F18: 155.67
A19: 其他商品和服务支出 | B19: 175 | C19: 220 | D19: 157 | E19: 71.36 | F19: 71.36
A20: 机关资本性支出（一）
A21: 房屋建筑物购建
A22: 基础设施建设
A23: 公务用车购置
A24: 土地征迁补偿和安置支出
A25: 设备购置
A26: 大型修缮
A27: 其他资本性支出
A28: 机关资本性支出（二）
A29: 房屋建筑物购建
A30: 基础设施建设
A31: 公务用车购置
A32: 设备购置
A33: 大型修缮
A34: 其他资本性支出
A35: 对事业单位经常性补助 | B35: 58,909 | C35: 60,267 | D35: 63,766 | E35: 105.81 | F35: 105.81
A36: 工资福利支出 | B36: 55,000 | C36: 56,346 | D36: 54,679 | E36: 97.04 | F36: 97.04
A37: 商品和服务支出 | B37: 3,909 | C37: 3,921 | D37: 9,087 | E37: 231.75 | F37: 231.75
A38: 其他对事业单位补助
A39: 对事业单位资本性补助 | B39: 390
A40: 资本性支出（一） | B40: 338
A41: 资本性支出（二） | B41: 52
A42: 对企业补助
A43: 对企业资本性支出
A44: 对个人和家庭的补助 | B44: 10,595 | C44: 9,968 | D44: 10,371 | E44: 104.04 | F44: 104.04
A45: 社会福利和救助 | B45: 10,550 | C45: 9,797 | D45: 10,243 | E45: 104.55 | F45: 104.55
A46: 助学金 | C46: 1 | E46: 0.00 | F46: 0.00
A47: 个人农业生产补贴
A48: 离退休费 | B48: 35 | C48: 132 | D48: 123 | E48: 93.18 | F48: 93.18
A49: 其他对个人和家庭补助 | B49: 10 | C49: 38 | D49: 5 | E49: 13.16 | F49: 13.16
A50: 对社会保障基金补助
A51: 债务利息及费用支出
A52: 其他支出
A53: 一般公共预算支出 | B53: 109,440 | C53: 114,205 | D53: 112,870 | E53: 98.83 | F53: 103.27

Sheet 12.政府性基金收入决算表
A1: 2024年盐边县政府性基金预算收入决算表
E2: 单位：万元，%
A3: 科 目 | B3: 年初预算数 | C3: 调整预算数 | D3: 决 算 数 | E3: 为调整预算 | F3: 为上年决算
A4: 国有土地收益基金收入 | C4: 1,141 | D4: 1,141 | E4: =D4/C4*100 -> 100.00 | F4: 96.94
A5: 农业土地开发资金收入 | C5: 417 | D5: 417 | E5: 100.00 | F5: 1,437.93
A6: 国有土地使用权出让收入 | B6: 60,000 | C6: 30,867 | D6: 30,866 | E6: 100.00 | F6: 81.19
A7: 城市基础设施配套费收入 | B7: 100 | C7: 163 | D7: 163 | E7: 100.00 | F7: 332.65
A8: 污水处理费收入 | B8: 400 | C8: 376 | D8: 376 | E8: 100.00 | F8: 99.73
A9: 专项债务对应项目专项收入 | C9: 7,576 | D9: 7,576 | E9: 100.00 | F9: 179.44
A10: 政府性基金预算收入 | B10: =SUM(B4:B9) -> 60,500 | C10: =SUM(C4:C9) -> 40,540 | D10: =SUM(D4:D9) -> 40,539 | E10: 100.00 | F10: 92.41

Sheet 13.政府性基金支出决算表
A1: 2024年盐边县政府性基金预算支出决算表
E2: 单位：万元，%
A3: 科 目 | B3: 年初预算数 | C3: 调整预算数 | D3: 决 算 数 | E3: 为调整预算 | F3: 为上年决算
A4: 教育支出 | B4: 0 | C4: 0 | D4: 0
A5: 超长期特别国债安排的支出 | C5: 0 | D5: 0
A6: 科学技术支出 | B6: 0 | C6: 0 | D6: 0
A7: 核电站乏燃料处理处置基金支出 | C7: 0 | D7: 0
A8: 超长期特别国债安排的支出 | C8: 0 | D8: 0
A9: 文化旅游体育与传媒支出 | B9: 1 | C9: 1 | D9: 1 | E9: =D9/C9*100 -> 100.00
A10: 国家电影事业发展专项资金安排的支出 | B10: 1 | C10: 1 | D10: 1 | E10: =D10/C10*100 -> 100.00
A11: 旅游发展基金支出 | C11: 0 | D11: 0
A12: 国家电影事业发展专项资金对应专项债务收入安排的支出 | C12: 0 | D12: 0
A13: 社会保障和就业支出 | B13: 0 | C13: 0 | D13: 0
A14: 超长期特别国债安排的支出 | C14: 0 | D14: 0
A15: 卫生健康支出 | B15: 0 | C15: 0 | D15: 0
A16: 超长期特别国债安排的支出 | C16: 0 | D16: 0
A17: 节能环保支出 | B17: 0 | C17: 0 | D17: 0
A18: 可再生能源电价附加收入安排的支出 | C18: 0 | D18: 0
A19: 废弃电器电子产品处理基金支出 | C19: 0 | D19: 0
A20: 超长期特别国债安排的支出 | C20: 0 | D20: 0
A21: 城乡社区支出 | B21: 51160 | C21: 32962 | D21: 32962 | E21: =D21/C21*100 -> 100.00 | F21: 83.13
A22: 国有土地使用权出让收入安排的支出 | B22: 50660 | C22: 30865 | D22: 30865 | E22: 100.00 | F22: 81.19
A23: 国有土地收益基金安排的支出 | C23: 1141 | D23: 1141 | E23: 100.00 | F23: 96.94
A24: 农业土地开发资金安排的支出 | C24: 417 | D24: 417 | E24: 100.00 | F24: 1437.93
A25: 城市基础设施配套费安排的支出 | B25: 100 | C25: 163 | D25: 163 | E25: 100.00 | F25: 332.65
A26: 污水处理费安排的支出 | B26: 400 | C26: 376 | D26: 376 | E26: 100.00 | F26: 99.73
A27: 土地储备专项债券收入安排的支出 | C27: 0 | D27: 0
A28: 棚户区改造专项债券收入安排的支出 | C28: 0 | D28: 0
A29: 城市基础设施配套费对应专项债务收入安排的支出 | C29: 0 | D29: 0
A30: 污水处理费对应专项债务收入安排的支出 | C30: 0 | D30: 0
A31: 国有土地使用权出让收入对应专项债务收入安排的支出 | C31: 0 | D31: 0
A32: 超长期特别国债安排的支出 | C32: 0 | D32: 0
A33: 农林水支出 | B33: 6542 | C33: 10595 | D33: 6509 | E33: =D33/C33*100 -> 61.43 | F33: 93.01
A34: 大中型水库库区基金安排的支出 | B34: 3469 | C34: 6718 | D34: 3469 | E34: =D34/C34*100 -> 51.64 | F34: 49.57
A35: 三峡水库库区基金支出 | C35: 0 | D35: 0
A36: 国家重大水利工程建设基金安排的支出 | C36: 0 | D36: 0
A37: 大中型水库库区基金对应专项债务收入安排的支出 | C37: 0 | D37: 0
A38: 国家重大水利工程建设基金对应专项债务收入安排的支出 | C38: 0 | D38: 0
A39: 大中型水库移民后期扶持基金支出 | B39: 3073 | C39: 3877 | D39: 3040 | E39: =D39/C39*100 -> 78.41
A40: 小型水库移民扶助基金安排的支出 | C40: 0 | D40: 0
A41: 小型水库移民扶助基金对应专项债务收入安排的支出 | C41: 0 | D41: 0
A42: 超长期特别国债安排的支出 | C42: 0 | D42: 0
A43: 交通运输支出 | B43: 0 | C43: 0 | D43: 0
A44: 海南省高等级公路车辆通行附加费安排的支出 | C44: 0 | D44: 0
A45: 车辆通行费安排的支出 | C45: 0 | D45: 0
A46: 铁路建设基金支出 | C46: 0 | D46: 0
A47: 船舶油污损害赔偿基金支出 | C47: 0 | D47: 0
A48: 民航发展基金支出 | C48: 0 | D48: 0
A49: 海南省高等级公路车辆通行附加费对应专项债务收入安排的支出 | C49: 0 | D49: 0
A50: 政府收费公路专项债券收入安排的支出 | C50: 0 | D50: 0
A51: 车辆通行费对应专项债务收入安排的支出 | C51: 0 | D51: 0
A52: 超长期特别国债安排的支出 | C52: 0 | D52: 0
A53: 资源勘探工业信息等支出 | B53: 0 | C53: 0 | D53: 0
A54: 农网还贷资金支出 | C54: 0 | D54: 0
A55: 超长期特别国债安排的支出 | C55: 0 | D55: 0
A56: 金融支出 | B56: 0 | C56: 0 | D56: 0
A57: 金融调控支出 | B57: 0 | C57: 0 | D57: 0
A58: 中央特别国债经营基金支出 | C58: 0 | D58: 0
A59: 中央特别国债经营基金财务支出 | C59: 0 | D59: 0
A60: 自然资源海洋气象等支出 | B60: 0 | C60: 0 | D60: 0
A61: 耕地保护考核奖惩基金支出 | C61: 0 | D61: 0
A62: 住房保障支出 | B62: 0 | C62: 0 | D62: 0
A63: 超长期特别国债安排的支出 | C63: 0 | D63: 0
A64: 粮油物资储备支出 | B64: 0 | C64: 0 | D64: 0
A65: 超长期特别国债安排的支出 | C65: 0 | D65: 0
A66: 灾害防治及应急管理支出 | B66: 0 | C66: 0 | D66: 0
A67: 用超长期特别国债收入安排的支出 | C67: 0 | D67: 0
A68: 其他支出 | B68: 5369 | C68: 69536 | D68: 67339 | E68: =D68/C68*100 -> 96.84 | F68: 116.94
A69: 其他政府性基金及对应专项债务收入安排的支出 | B69: 4849 | C69: 67850 | D69: 66919 | E69: =D69/C69*100 -> 98.63 | F69: 117.71
A70: 彩票发行销售机构业务费安排的支出 | C70: 0 | D70: 0
A71: 抗疫特别国债财务基金支出 | C71: 0 | D71: 0
A72: 超长期特别国债财务基金支出 | C72: 0 | D72: 0
A73: 彩票公益金安排的支出 | B73: 520 | C73: 1686 | D73: 420 | E73: =D73/C73*100 -> 24.91 | F73: 57.30
A74: 超长期特别国债安排的其他支出 | C74: 0 | D74: 0
A75: 债务付息支出 | B75: 6600 | C75: 5708 | D75: 5708 | E75: =D75/C75*100 -> 100.00 | F75: 137.41
A76: 债务发行费用支出 | B76: 80 | C76: 68 | D76: 68 | E76: =D76/C76*100 -> 100.00 | F76: 100.00
A77: 抗疫特别国债安排的支出 | B77: 0 | C77: 0 | D77: 0
A78: 基础设施建设 | C78: 0 | D78: 0
A79: 抗疫相关支出 | C79: 0 | D79: 0
A80: 政府性基金预算支出 | B80: 69752 | C80: 118870 | D80: 112587 | E80: =D80/C80*100 -> 94.71 | F80: 100.98

Sheet 14.政府性基金收支预算平衡表
A1: 2024年盐边县政府性基金预算收支决算平衡表
A2: 单位：万元
A3: 项目 | B3: 决 算 数 | C3: 项目 | D3: 决 算 数
A4: 政府性基金预算收入 | B4: 40,539 | C4: 政府性基金预算支出 | D4: 112,587
A5: 政府性基金预算上级补助收入 | B5: 8,089 | C5: 政府性基金预算补助下级支出 | D5: 0
A6: 政府性基金转移支付收入 | B6: 8,089 | C6: 政府性基金转移支付支出 | D6: 0
A7: 科学技术 | C7: 科学技术
A8: 文化旅游体育与传媒 | C8: 文化旅游体育与传媒
A9: 社会保障和就业 | C9: 社会保障和就业
A10: 节能环保 | C10: 节能环保
A11: 城乡社区 | C11: 城乡社区
A12: 农林水 | B12: 6,649 | C12: 农林水
A13: 交通运输 | C13: 交通运输
A14: 资源勘探工业信息等 | C14: 资源勘探工业信息等
A15: 自然资源海洋气象等 | C15: 自然资源海洋气象等
A16: 超长期特别国债转移支付收入 | C16: 超长期特别国债转移支付支出
A17: 其他收入 | B17: 1,440 | C17: 其他支出
A18: 政府性基金预算下级上解收入 | B18: 0 | C18: 政府性基金预算上解上级支出 | D18: 0
A19: 抗疫特别国债还本上解收入 | C19: 抗疫特别国债还本上解支出
A20: 超长期特别国债还本上解收入 | C20: 超长期特别国债还本上解支出
A21: 其他政府性基金上解收入 | C21: 其他政府性基金上解支出
A22: 待偿债再融资专项债券上年结余
A23: 政府性基金预算上年结余收入 | B23: 9,042
A24: 政府性基金预算调入资金 | B24: 0 | C24: 政府性基金预算调出资金
A25: 中央单位特殊上缴利润专项收入
A26: 其他调入政府性基金预算资金 | B26: 0
A27: 从一般公共预算调入用于补充超长期特别国债偿债备付金的资金
A28: 从一般公共预算调入用于偿还超长期特别国债本金的资金
A29: 从一般公共预算调入的其他资金
A30: 从国有资本经营预算调入用于补充超长期特别国债偿债备付金的资金
A31: 从国有资本经营预算调入用于偿还超长期特别国债本金的资金
A32: 其他调入资金
A33: 债务收入 | B33: 0 | C33: 债务还本支出 | D33: 45,400
A34: 中央政府债务收入 | C34: 地方政府专项债务还本支出 | D34: 45,400
A35: 超长期特别国债收入 | C35: 抗疫特别国债还本支出
A36: 地方政府债务收入 | B36: 0 | C36: 超长期特别国债还本支出
A37: 专项债务收入 | C37: 债务转贷支出
A38: 债务转贷收入 | B38: 106,600
A39: 地方政府专项债务转贷收入 | B39: 106,600
A40: 政府性基金预算省补助计划单列市收入 | C40: 政府性基金预算省补助计划单列市支出
A41: 政府性基金预算计划单列市上解省收入 | C41: 政府性基金预算计划单列市上解省支出
A42: 动用偿债备付金 | B42: 0 | C42: 偿债备付金 | D42: 0
A43: 动用超长期特别国债偿债备付金 | C43: 安排超长期特别国债偿债备付金
C44: 待偿债再融资专项债券结余 | D44: 0
C45: 政府性基金预算年终结余 | D45: 6,283
A46: 收 入 总 计 | B46: 164,270 | C46: 支 出 总 计 | D46: 164,270

Sheet 15.县本级政府性基金收入决算表
A1: 2024年盐边县本级政府性基金预算收入决算表
E2: 单位：万元，%
A3: 科 目 | B3: 年初预算数 | C3: 调整预算数 | D3: 决 算 数 | E3: 为调整预算 | F3: 为上年决算
A4: 国有土地收益基金收入 | C4: 1,141 | D4: 1,141 | E4: 100.00 | F4: 96.94
A5: 农业土地开发资金收入 | C5: 417 | D5: 417 | E5: 100.00 | F5: 1,437.93
A6: 国有土地使用权出让收入 | B6: 60,000 | C6: 30,867 | D6: 30,866 | E6: 100.00 | F6: 81.19
A7: 城市基础设施配套费收入 | B7: 100 | C7: 163 | D7: 163 | E7: 100.00 | F7: 332.65
A8: 污水处理费收入 | B8: 400 | C8: 376 | D8: 376 | E8: 100.00 | F8: 99.73
A9: 专项债务对应项目专项收入 | C9: 7,576 | D9: 7,576 | E9: 100.00 | F9: 179.44
A10: 政府性基金预算收入 | B10: 60,500 | C10: 40,540 | D10: 40,539 | E10: 100.00 | F10: 92.41

Sheet 16.县本级政府性基金支出决算表
A1: 2024年盐边县本级政府性基金预算支出决算表
E2: 单位：万元，%
A3: 科 目 | B3: 年初预算数 | C3: 调整预算数 | D3: 决 算 数 | E3: 为调整预算 | F3: 为上年决算
A4: 教育支出 | B4: 0 | C4: 0 | D4: 0
A5: 超长期特别国债安排的支出 | C5: 0 | D5: 0
A6: 科学技术支出 | B6: 0 | C6: 0 | D6: 0
A7: 核电站乏燃料处理处置基金支出 | C7: 0 | D7: 0
A8: 超长期特别国债安排的支出 | C8: 0 | D8: 0
A9: 文化旅游体育与传媒支出 | B9: 1 | C9: 1 | D9: 1 | E9: =D9/C9*100 -> 100.00
A10: 国家电影事业发展专项资金安排的支出 | B10: 1 | C10: 1 | D10: 1 | E10: =D10/C10*100 -> 100.00
A11: 旅游发展基金支出 | C11: 0 | D11: 0
A12: 国家电影事业发展专项资金对应专项债务收入安排的支出 | C12: 0 | D12: 0
A13: 社会保障和就业支出 | B13: 0 | C13: 0 | D13: 0
A14: 超长期特别国债安排的支出 | C14: 0 | D14: 0
A15: 卫生健康支出 | B15: 0 | C15: 0 | D15: 0
A16: 超长期特别国债安排的支出 | C16: 0 | D16: 0
A17: 节能环保支出 | B17: 0 | C17: 0 | D17: 0
A18: 可再生能源电价附加收入安排的支出 | C18: 0 | D18: 0
A19: 废弃电器电子产品处理基金支出 | C19: 0 | D19: 0
A20: 超长期特别国债安排的支出 | C20: 0 | D20: 0
A21: 城乡社区支出 | B21: 51160 | C21: 32962 | D21: 32962 | E21: =D21/C21*100 -> 100.00 | F21: 83.13
A22: 国有土地使用权出让收入安排的支出 | B22: 50660 | C22: 30865 | D22: 30865 | E22: 100.00 | F22: 81.19
A23: 国有土地收益基金安排的支出 | C23: 1141 | D23: 1141 | E23: 100.00 | F23: 96.94
A24: 农业土地开发资金安排的支出 | C24: 417 | D24: 417 | E24: 100.00 | F24: 1437.93
A25: 城市基础设施配套费安排的支出 | B25: 100 | C25: 163 | D25: 163 | E25: 100.00 | F25: 332.65
A26: 污水处理费安排的支出 | B26: 400 | C26: 376 | D26: 376 | E26: 100.00 | F26: 99.73
A27: 土地储备专项债券收入安排的支出 | C27: 0 | D27: 0
A28: 棚户区改造专项债券收入安排的支出 | C28: 0 | D28: 0
A29: 城市基础设施配套费对应专项债务收入安排的支出 | C29: 0 | D29: 0
A30: 污水处理费对应专项债务收入安排的支出 | C30: 0 | D30: 0
A31: 国有土地使用权出让收入对应专项债务收入安排的支出 | C31: 0 | D31: 0
A32: 超长期特别国债安排的支出 | C32: 0 | D32: 0
A33: 农林水支出 | B33: 6542 | C33: 10595 | D33: 6509 | E33: =D33/C33*100 -> 61.43 | F33: 93.01
A34: 大中型水库库区基金安排的支出 | B34: 3469 | C34: 6718 | D34: 3469 | E34: =D34/C34*100 -> 51.64 | F34: 49.57
A35: 三峡水库库区基金支出 | C35: 0 | D35: 0
A36: 国家重大水利工程建设基金安排的支出 | C36: 0 | D36: 0
A37: 大中型水库库区基金对应专项债务收入安排的支出 | C37: 0 | D37: 0
A38: 国家重大水利工程建设基金对应专项债务收入安排的支出 | C38: 0 | D38: 0
A39: 大中型水库移民后期扶持基金支出 | B39: 3073 | C39: 3877 | D39: 3040 | E39: =D39/C39*100 -> 78.41
A40: 小型水库移民扶助基金安排的支出 | C40: 0 | D40: 0
A41: 小型水库移民扶助基金对应专项债务收入安排的支出 | C41: 0 | D41: 0
A42: 超长期特别国债安排的支出 | C42: 0 | D42: 0
A43: 交通运输支出 | B43: 0 | C43: 0 | D43: 0
A44: 海南省高等级公路车辆通行附加费安排的支出 | C44: 0 | D44: 0
A45: 车辆通行费安排的支出 | C45: 0 | D45: 0
A46: 铁路建设基金支出 | C46: 0 | D46: 0
A47: 船舶油污损害赔偿基金支出 | C47: 0 | D47: 0
A48: 民航发展基金支出 | C48: 0 | D48: 0
A49: 海南省高等级公路车辆通行附加费对应专项债务收入安排的支出 | C49: 0 | D49: 0
A50: 政府收费公路专项债券收入安排的支出 | C50: 0 | D50: 0
A51: 车辆通行费对应专项债务收入安排的支出 | C51: 0 | D51: 0
A52: 超长期特别国债安排的支出 | C52: 0 | D52: 0
A53: 资源勘探工业信息等支出 | B53: 0 | C53: 0 | D53: 0
A54: 农网还贷资金支出 | C54: 0 | D54: 0
A55: 超长期特别国债安排的支出 | C55: 0 | D55: 0
A56: 金融支出 | B56: 0 | C56: 0 | D56: 0
A57: 金融调控支出 | B57: 0 | C57: 0 | D57: 0
A58: 中央特别国债经营基金支出 | C58: 0 | D58: 0
A59: 中央特别国债经营基金财务支出 | C59: 0 | D59: 0
A60: 自然资源海洋气象等支出 | B60: 0 | C60: 0 | D60: 0
A61: 耕地保护考核奖惩基金支出 | C61: 0 | D61: 0
A62: 住房保障支出 | B62: 0 | C62: 0 | D62: 0
A63: 超长期特别国债安排的支出 | C63: 0 | D63: 0
A64: 粮油物资储备支出 | B64: 0 | C64: 0 | D64: 0
A65: 超长期特别国债安排的支出 | C65: 0 | D65: 0
A66: 灾害防治及应急管理支出 | B66: 0 | C66: 0 | D66: 0
A67: 用超长期特别国债收入安排的支出 | C67: 0 | D67: 0
A68: 其他支出 | B68: 5369 | C68: 69536 | D68: 67339 | E68: =D68/C68*100 -> 96.84 | F68: 116.94
A69: 其他政府性基金及对应专项债务收入安排的支出 | B69: 4849 | C69: 67850 | D69: 66919 | E69: 98.63 | F69: 117.71
A70: 彩票发行销售机构业务费安排的支出 | C70: 0 | D70: 0
A71: 抗疫特别国债财务基金支出 | C71: 0 | D71: 0
A72: 超长期特别国债财务基金支出 | C72: 0 | D72: 0
A73: 彩票公益金安排的支出 | B73: 520 | C73: 1686 | D73: 420 | E73: 24.91 | F73: 57.30
A74: 超长期特别国债安排的其他支出 | C74: 0 | D74: 0
A75: 债务付息支出 | B75: 6600 | C75: 5708 | D75: 5708 | E75: =D75/C75*100 -> 100.00 | F75: 137.41
A76: 债务发行费用支出 | B76: 80 | C76: 68 | D76: 68 | E76: 100.00 | F76: 100.00
A77: 抗疫特别国债安排的支出 | B77: 0 | C77: 0 | D77: 0
A78: 基础设施建设 | C78: 0 | D78: 0
A79: 抗疫相关支出 | C79: 0 | D79: 0
A80: 政府性基金预算支出 | B80: 69752 | C80: 118870 | D80: 112587 | E80: 94.71 | F80: 100.98

Sheet 17.县本级政府性基金收支预算平衡表
A1: 2024年盐边县本级政府性基金预算收支决算平衡表
A2: 单位：万元
A3: 项目 | B3: 决 算 数 | C3: 项目 | D3: 决 算 数
A4: 政府性基金预算收入 | B4: 40,539 | C4: 政府性基金预算支出 | D4: 112,587
A5: 政府性基金预算上级补助收入 | B5: 8,089 | C5: 政府性基金预算补助下级支出 | D5: 0
A6: 政府性基金转移支付收入 | B6: 8,089 | C6: 政府性基金转移支付支出 | D6: 0
A7: 科学技术 | C7: 科学技术
A8: 文化旅游体育与传媒 | C8: 文化旅游体育与传媒
A9: 社会保障和就业 | C9: 社会保障和就业
A10: 节能环保 | C10: 节能环保
A11: 城乡社区 | C11: 城乡社区
A12: 农林水 | B12: 6,649 | C12: 农林水
A13: 交通运输 | C13: 交通运输
A14: 资源勘探工业信息等 | C14: 资源勘探工业信息等
A15: 自然资源海洋气象等 | C15: 自然资源海洋气象等
A16: 超长期特别国债转移支付收入 | C16: 超长期特别国债转移支付支出
A17: 其他收入 | B17: 1,440 | C17: 其他支出
A18: 政府性基金预算下级上解收入 | B18: 0 | C18: 政府性基金预算上解上级支出 | D18: 0
A19: 抗疫特别国债还本上解收入 | C19: 抗疫特别国债还本上解支出
A20: 超长期特别国债还本上解收入 | C20: 超长期特别国债还本上解支出
A21: 其他政府性基金上解收入 | C21: 其他政府性基金上解支出
A22: 待偿债再融资专项债券上年结余
A23: 政府性基金预算上年结余收入 | B23: 9,042
A24: 政府性基金预算调入资金 | B24: 0 | C24: 政府性基金预算调出资金
A25: 中央单位特殊上缴利润专项收入
A26: 其他调入政府性基金预算资金 | B26: 0
A27: 从一般公共预算调入用于补充超长期特别国债偿债备付金的资金
A28: 从一般公共预算调入用于偿还超长期特别国债本金的资金
A29: 从一般公共预算调入的其他资金
A30: 从国有资本经营预算调入用于补充超长期特别国债偿债备付金的资金
A31: 从国有资本经营预算调入用于偿还超长期特别国债本金的资金
A32: 其他调入资金
A33: 债务收入 | B33: 0 | C33: 债务还本支出 | D33: 45,400
A34: 中央政府债务收入 | C34: 地方政府专项债务还本支出 | D34: 45,400
A35: 超长期特别国债收入 | C35: 抗疫特别国债还本支出
A36: 地方政府债务收入 | B36: 0 | C36: 超长期特别国债还本支出
A37: 专项债务收入 | C37: 债务转贷支出
A38: 债务转贷收入 | B38: 106,600
A39: 地方政府专项债务转贷收入 | B39: 106,600
A40: 政府性基金预算省补助计划单列市收入 | C40: 政府性基金预算省补助计划单列市支出
A41: 政府性基金预算计划单列市上解省收入 | C41: 政府性基金预算计划单列市上解省支出
A42: 动用偿债备付金 | B42: 0 | C42: 偿债备付金 | D42: 0
A43: 动用超长期特别国债偿债备付金 | C43: 安排超长期特别国债偿债备付金
C44: 待偿债再融资专项债券结余 | D44: 0
C45: 政府性基金预算年终结余 | D45: 6,283
A46: 收 入 总 计 | B46: 164,270 | C46: 支 出 总 计 | D46: 164,270

Sheet 18.政府性基金转移支付补助决算表
A1: 2024年省对县政府性基金预算转移支付补助决算表
B2: 单位：万元
A3: 科 目 | B3: 决 算 数
A4: 政府性基金上级补助收入 | B4: 8,089
A5: 政府性基金转移支付收入 | B5: 8,089
A6: 国家电影事业发展专项资金相关收入
A7: 大中型水库移民后期扶持基金收入 | B7: 3,400
A8: 大中型水库库区基金相关收入 | B8: 3,249
A9: 彩票公益金收入 | B9: 1,440

Sheet 19.县本级预算内基本建设支出决算表
A1: 2024年盐边县预算内基本建设支出决算表
B2: 单位：万元
A3: 科 目 | B3: 决 算 数
A4: 一、一般公共服务支出 | B4: 272
A5: 二、外交支出
A6: 三、国防支出
A7: 四、公共安全支出
A8: 五、教育支出
A9: 六、科学技术支出
A10: 七、文化旅游体育与传媒支出
A11: 八、社会保障和就业支出 | B11: 526
A12: 九、卫生健康支出
A13: 十、节能环保支出 | B13: 43
A14: 十一、城乡社区支出
A15: 十二、农林水支出 | B15: 7
A16: 十三、交通运输支出
A17: 十四、资源勘探工业信息等支出
A18: 十五、商业服务业等支出
A19: 十六、金融支出
A20: 十七、自然资源海洋气象等支出
A21: 十八、住房保障支出
A22: 十九、粮油物资储备支出
A23: 二十、灾害防治及应急管理支出
A24: 二十二、其他支出
A25: 合计 | B25: 848

Sheet 20.国有资本经营预算收入决算表
A1: 2024年盐边县国有资本经营预算收入决算表
E2: 单位：万元，%
A3: 科 目 | B3: 年初预算数 | C3: 调整预算数 | D3: 决 算 数 | E3: 为调整预算 | F3: 为上年决算
A4: 利润收入 | B4: 1,000 | C4: 1,000 | D4: 1,000 | E4: =D4/C4*100 -> 100.00 | F4: 125.00
A5: 投资服务企业利润收入 | B5: 1,000 | C5: 1,000 | D5: 1,000 | E5: =D5/C5*100 -> 100.00 | F5: 125.00
A6: 金融企业利润收入
A7: 其他国有资本经营预算企业利润收入
A8: 股利、股息收入
A9: 国有控股公司股利、股息收入
A10: 国有参股公司股利、股息收入
A11: 金融企业股利、股息收入
A12: 其他国有资本经营预算企业股利、股息收入
A13: 产权转让收入
A14: 清算收入
A15: 其他国有资本经营预算收入
A16: 合计 | B16: 1,000 | C16: 1,000 | D16: 1,000 | E16: =D16/C16*100 -> 100.00 | F16: 125.00

Sheet 21.国有资本经营预算支出决算表
A1: 2024年盐边县国有资本经营预算支出决算表
E2: 单位：万元，%
A3: 科 目 | B3: 年初预算数 | C3: 调整预算数 | D3: 决 算 数 | E3: 为调整预算 | F3: 为上年决算
A4: 社会保障和就业支出
A5: 国有资本经营预算支出 | C5: 1,007 | D5: 1,007 | E5: =D5/C5*100 -> 100.00 | F5: 122.51
A6: 解决历史遗留问题及改革成本支出 | C6: 7 | D6: 7 | E6: =D6/C6*100 -> 100.00 | F6: 31.82
A7: 厂办大集体改革支出
A8: “三供一业”移交补助支出
A9: 国有企业办职教幼教补助支出
A10: 国有企业办公共服务机构移交补助支出
A11: 国有企业退休人员社会化管理补助支出 | C11: 7 | D11: 7 | E11: =D11/C11*100 -> 100.00 | F11: 31.82
A12: 国有企业棚户区改造支出
A13: 国有企业改革成本支出
A14: 离休干部医药费补助支出
A15: 金融企业改革性支出
A16: 其他解决历史遗留问题及改革成本支出
A17: 国有企业资本金注入 | C17: 1,000 | D17: 1,000 | E17: =D17/C17*100 -> 100.00 | F17: 125.00
A18: 国有经济结构调整支出
A19: 公益性设施投资支出
A20: 前瞻性战略性产业发展支出
A21: 生态环境保护支出
A22: 支持科技进步支出
A23: 保障国家经济安全支出
A24: 金融企业资本性支出
A25: 其他国有企业资本金注入 | C25: 1,000 | D25: 1,000 | E25: =D25/C25*100 -> 100.00 | F25: 125.00
A26: 国有企业政策性补贴
A27: 其他国有资本经营预算支出
A28: 合计 | C28: 1,007 | D28: 1,007 | E28: =D28/C28*100 -> 100.00 | F28: 122.51

Sheet 22.国有资本经营预算收支决算平衡表
A1: 2024年盐边县国有资本经营预算收支决算平衡表
C2: 单位：万元
A3: 科 目 | B3: 决 算 数 | C3: 科 目 | D3: 决算数
A4: 国有资本经营预算收入 | B4: 1,000 | C4: 国有资本经营预算支出 | D4: 1,007
A5: 国有资本经营预算上级补助收入 | B5: 7 | C5: 国有资本经营预算补助下级支出
A6: 国有资本经营预算下级上解收入 | C6: 国有资本经营预算上解上级支出
A7: 国有资本经营预算上年结余 | C7: 国有资本经营预算调出资金
C8: 国有资本经营预算年终结余
A9: 收 入 总 计 | B9: 1,007 | C9: 支 出 总 计 | D9: 1,007

Sheet 23.县本级国有资本经营预算收入决算表
A1: 2024年盐边县本级国有资本经营预算收入决算表
E2: 单位：万元，%
A3: 科 目 | B3: 年初预算数 | C3: 调整预算数 | D3: 决 算 数 | E3: 为调整预算 | F3: 为上年决算
A4: 利润收入 | B4: 1,000 | C4: 1,000 | D4: 1,000 | E4: 100.00 | F4: 125.00
A5: 投资服务企业利润收入 | B5: 1,000 | C5: 1,000 | D5: 1,000 | E5: 100.00 | F5: 125.00
A6: 金融企业利润收入
A7: 其他国有资本经营预算企业利润收入
A8: 股利、股息收入
A9: 国有控股公司股利、股息收入
A10: 国有参股公司股利、股息收入
A11: 金融企业股利、股息收入
A12: 其他国有资本经营预算企业股利、股息收入
A13: 产权转让收入
A14: 清算收入
A15: 其他国有资本经营预算收入
A16: 合计 | B16: 1,000 | C16: 1,000 | D16: 1,000 | E16: 100.00 | F16: 125.00

Sheet 24.县本级国有资本经营预算支出决算表
A1: 2024年盐边县本级国有资本经营预算支出决算表
E2: 单位：万元，%
A3: 科 目 | B3: 年初预算数 | C3: 调整预算数 | D3: 决 算 数 | E3: 为调整预算 | F3: 为上年决算
A4: 社会保障和就业支出
A5: 国有资本经营预算支出 | C5: 1,007 | D5: 1,007 | E5: 100.00 | F5: 122.51
A6: 解决历史遗留问题及改革成本支出 | C6: 7 | D6: 7 | E6: 100.00 | F6: 31.82
A7: 厂办大集体改革支出
A8: “三供一业”移交补助支出
A9: 国有企业办职教幼教补助支出
A10: 国有企业办公共服务机构移交补助支出
A11: 国有企业退休人员社会化管理补助支出 | C11: 7 | D11: 7 | E11: 100.00 | F11: 31.82
A12: 国有企业棚户区改造支出
A13: 国有企业改革成本支出
A14: 离休干部医药费补助支出
A15: 金融企业改革性支出
A16: 其他解决历史遗留问题及改革成本支出
A17: 国有企业资本金注入 | C17: 1,000 | D17: 1,000 | E17: 100.00 | F17: 125.00
A18: 国有经济结构调整支出
A19: 公益性设施投资支出
A20: 前瞻性战略性产业发展支出
A21: 生态环境保护支出
A22: 支持科技进步支出
A23: 保障国家经济安全支出
A24: 金融企业资本性支出
A25: 其他国有企业资本金注入 | C25: 1,000 | D25: 1,000 | E25: 100.00 | F25: 125.00
A26: 国有企业政策性补贴
A27: 其他国有资本经营预算支出
A28: 合计 | C28: 1,007 | D28: 1,007 | E28: 100.00 | F28: 122.51

Sheet 25.县本级国有资本经营预算收支决算表
A1: 2024年盐边县国有资本经营预算收支决算平衡表
C2: 单位：万元
A3: 科 目 | B3: 决 算 数 | C3: 科 目 | D3: 决算数
A4: 国有资本经营预算收入 | B4: 1,000 | C4: 国有资本经营预算支出 | D4: 1,007
A5: 国有资本经营预算上级补助收入 | B5: 7 | C5: 国有资本经营预算补助下级支出
A6: 国有资本经营预算下级上解收入 | C6: 国有资本经营预算上解上级支出
A7: 国有资本经营预算上年结余 | C7: 国有资本经营预算调出资金
C8: 国有资本经营预算年终结余
A9: 收 入 总 计 | B9: 1,007 | C9: 支 出 总 计 | D9: 1,007

Sheet 26.对下国有资本经营预算转移支付决算表
A1: 2024年盐边县对下国有资本经营预算转移支付决算表
D2: 单位：万元，%
A3: 预 算 科 目 | B3: 预算数 | C3: 决算数 | D3: 为预算
A4: 一、解决历史遗留问题及改革成本支出
A5: 厂办大集体改革支出
A6: “三供一业”移交补助支出
A7: 国有企业办职教幼教补助支出
A8: ……
A9: ……
A10: ……
A11: 其他解决历史遗留问题及改革成本支出
A13: 合计
A14: 备注：盐边县本级无对下国有资本经营预算转移支付支出。

Sheet 27.社会保险基金收入决算表
A1: 2024年盐边县社会保险基金预算收入决算表
E2: 单位：万元，%
A3: 科 目 | B3: 年初预算数 | C3: 调整预算数 | D3: 决 算 数 | E3: 为调整预算 | F3: 为上年决算
A4: 城乡居民基本养老保险基金收入
A5: 社会保险费收入
A6: 财政补贴收入
A7: 利息收入
A8: 委托投资收益
A9: 转移收入
A10: 其他收入
A11: 全国统筹调剂资金收入
A12: 职工基本医疗保险（含生育保险）基金收入
A13: 社会保险费收入
A14: 财政补贴收入
A15: 利息收入
A16: 委托投资收益
A17: 转移收入
A18: 其他收入
A19: 全国统筹调剂资金收入
A20: 城乡居民基本医疗保险基金收入
A21: 社会保险费收入
A22: 财政补贴收入
A23: 利息收入
A24: 委托投资收益
A25: 转移收入
A26: 其他收入
A27: 全国统筹调剂资金收入
A28: 合计
A29: 说明：由于社保基金上划市级，我县本级无社保基金收入。

Sheet 28.社会保险基金支出决算表
A1: 2024年盐边县社会保险基金预算支出决算表
E2: 单位：万元，%
A3: 科 目 | B3: 年初预算数 | C3: 调整预算数 | D3: 决 算 数 | E3: 为调整预算 | F3: 为上年决算
A4: 城乡居民基本养老保险基金支出
A5: 社会保险待遇支出
A6: 转移支出
A7: 其他支出
A8: 全国统筹调剂资金支出
A9: 职工基本医疗保险（含生育保险）基金支出
A10: 社会保险待遇支出
A11: 转移支出
A12: 其他支出
A13: 全国统筹调剂资金支出
A14: 城乡居民基本医疗保险基金支出
A15: 社会保险待遇支出
A16: 大病医疗保险支出
A17: 其他支出
A18: 社会保险基金支出合计
A19: 说明：由于社保基金上划市级，我县无社保基金支出

Sheet 29.社会保险基金收支平衡表
A1: 2024年盐边县社会保险基金预算收支决算平衡表
F2: 单位：万元
A3: 科目 | B3: 决算数 | D3: 科目 | E3: 决算数
B4: 全县 | C4: 县级 | E4: 全县 | F4: 县级
A5: 社会保险基金收入 | D5: 社会保险基金支出
A6: 企业职工基本养老保险基金收入 | D6: 企业职工基本养老保险基金支出
A7: 城乡居民基本养老保险基金收入 | D7: 城乡居民基本养老保险基金支出
A8: 职工基本医疗保险(含生育保险）基金收入 | D8: 职工基本医疗保险(含生育保险）基金支出
A9: 城乡居民基本医疗保险基金收入 | D9: 城乡居民基本医疗保险基金支出
A10: 工伤保险基金收入 | D10: 工伤保险基金支出
A11: 失业保险基金收入 | D11: 失业保险基金支出
A12: 上年滚存结余 | D12: 年终滚存结余
A13: 社会保险基金总收入 | D13: 社会保险基金总支出
A14: 说明：由于社保基金上划市级，我县无社保基金收支

Sheet 30.县本级社会保险基金收入决算表
A1: 2024年盐边县本级社会保险基金预算收入决算表
E2: 单位：万元，%
A3: 科 目 | B3: 年初预算数 | C3: 调整预算数 | D3: 决 算 数 | E3: 为调整预算 | F3: 为上年决算
A4: 城乡居民基本养老保险基金收入
A5: 社会保险费收入
A6: 财政补贴收入
A7: 利息收入
A8: 委托投资收益
A9: 转移收入
A10: 其他收入
A11: 全国统筹调剂资金收入
A12: 职工基本医疗保险（含生育保险）基金收入
A13: 社会保险费收入
A14: 财政补贴收入
A15: 利息收入
A16: 委托投资收益
A17: 转移收入
A18: 其他收入
A19: 全国统筹调剂资金收入
A20: 城乡居民基本医疗保险基金收入
A21: 社会保险费收入
A22: 财政补贴收入
A23: 利息收入
A24: 委托投资收益
A25: 转移收入
A26: 其他收入
A27: 全国统筹调剂资金收入
A28: 合计
A29: 说明：由于社保基金上划市级，我县本级无社保基金收入。

Sheet 31.县本级社会保险基金支出决算表
A1: 2024年盐边县社会保险基金预算支出决算表
E2: 单位：万元，%
A3: 科 目 | B3: 年初预算数 | C3: 调整预算数 | D3: 决 算 数 | E3: 为调整预算 | F3: 为上年决算
A4: 城乡居民基本养老保险基金支出
A5: 社会保险待遇支出
A6: 转移支出
A7: 其他支出
A8: 全国统筹调剂资金支出
A9: 职工基本医疗保险（含生育保险）基金支出
A10: 社会保险待遇支出
A11: 转移支出
A12: 其他支出
A13: 全国统筹调剂资金支出
A14: 城乡居民基本医疗保险基金支出
A15: 社会保险待遇支出
A16: 大病医疗保险支出
A17: 其他支出
A18: 社会保险基金支出合计
A19: 说明：由于社保基金上划市级，我县无社保基金支出

Sheet 32.县本级社会保险基金收支平衡表
A1: 2024年盐边县本级社会保险基金预算收支决算平衡表
F2: 单位：万元
A3: 科目 | B3: 决算数 | D3: 科目 | E3: 决算数
B4: 全县 | C4: 县级 | E4: 全县 | F4: 县级
A5: 社会保险基金收入 | D5: 社会保险基金支出
A6: 企业职工基本养老保险基金收入 | D6: 企业职工基本养老保险基金支出
A7: 城乡居民基本养老保险基金收入 | D7: 城乡居民基本养老保险基金支出
A8: 职工基本医疗保险(含生育保险）基金收入 | D8: 职工基本医疗保险(含生育保险）基金支出
A9: 城乡居民基本医疗保险基金收入 | D9: 城乡居民基本医疗保险基金支出
A10: 工伤保险基金收入 | D10: 工伤保险基金支出
A11: 失业保险基金收入 | D11: 失业保险基金支出
A12: 上年滚存结余 | D12: 年终滚存结余
A13: 社会保险基金总收入 | D13: 社会保险基金总支出
A14: 说明：由于社保基金上划市级，我县无社保基金收支

Sheet 33.地方政府一般债务余额
A1: 2024年盐边县地方政府一般债务余额情况表
C2: 单位：万元
A3: 项 目 | B3: 一般债务
B4: 合计 | C4: 一般债券 | D4: 非债券 形式债务
A5: 一、2023年末余额 | B5: 137,735 | C5: 137,735
A6: 二、2024年新增额 | B6: 16,478 | C6: 16,478
A7: 三、2024年或有债务转化额
A8: 四、2024年偿还额 | B8: 9,164 | C8: 9,164
A9: 五、2024年末余额 | B9: 145,049 | C9: 145,049
A10: 注：本表反映的举借额和偿还额均包含再融资债券。

Sheet 34.地方政府专项债务余额
A1: 2024年盐边县地方政府专项债务余额情况表
C2: 单位：万元
A3: 项 目 | B3: 专项债务
B4: 合计 | C4: 专项债券 | D4: 其他专项债务
A5: 一、2023年末余额 | B5: 168,340 | C5: 168,340
A6: 二、2024年新增额 | B6: 106,600 | C6: 106,600
A7: 三、2024年或有债务转化额
A8: 四、2024年偿还额 | B8: 45,400 | C8: 26,600 | D8: 18,800
A9: 五、本年采用其他方式化解的债务本金 | B9: -18,800 | D9: -18,800
A10: 六、2024年末余额 | B10: 248,340 | C10: 248,340
A11: 注：本表反映的举借额和偿还额均包含再融资债券。

Sheet 35.地方政府性债务余额
A1: 2024年盐边县地方政府债务余额情况汇总表
E2: 单位：万元
A3: 项 目 | B3: 政府债务 | F3: 或有债务
B4: 合计 | C4: 一般债券 | D4: 专项债券 | E4: 非债券 形式债务
A5: 一、2023年末余额 | B5: 306,075 | C5: 137,735 | D5: 168,340 | F5: 2,587
A6: 二、2024年新增额 | B6: 123,078 | C6: 16,478 | D6: 106,600
A7: 三、2024年或有债务转化额
A8: 四、2024年偿还额 | B8: 35,764 | C8: 9,164 | D8: 26,600 | F8: 0
A9: 五、2024年末余额 | B9: 393,389 | C9: 145,049 | D9: 248,340 | F9: 2,587
A10: 注：本表反映的举借额和偿还额均包含再融资债券。

Sheet 36.地方政府债券使用情况
A1: 2024年盐边县地方政府债券资金安排使用情况表
C2: 单位：万元
A3: 市州 | B3: 地区 | C3: 项目名称 | D3: 项目领域 | E3: 项目主管 部门 | F3: 项目实施单位 | G3: 债券 性质 | H3: 债券 规模 | I3: 发行 时间
A4: 攀枝花市 | B4: 盐边县 | C4: 盐边县公安局地下车库暨县应急指挥中心人防工程 | D4: 其他社会事业 | E4: 盐边县公安局 | F4: 盐边县公安局 | G4: 一般债券 | H4: 315 | I4: 2024-01
A5: 攀枝花市 | B5: 盐边县 | C5: 盐边县消防救援大队建设项目 | D5: 其他社会事业 | E5: 盐边县消防救援大队 | F5: 盐边县消防救援大队 | G5: 一般债券 | H5: 230 | I5: 2024-01
A6: 攀枝花市 | B6: 盐边县 | C6: 盐边县第一初级中学校改扩建工程项目 | D6: 其他社会事业 | E6: 盐边县教育和体育局 | F6: 盐边县教育和体育局 | G6: 一般债券 | H6: 2,770 | I6: 2024-09
A7: 攀枝花市 | B7: 盐边县 | C7: 昔格达大道北段提升改造工程 | D7: 其他 | E7: 红管委 | F7: 红管委 | G7: 一般债券 | H7: 1,100 | I7: 2024-01
A8: 攀枝花市 | B8: 盐边县 | C8: 红格训练基地道路改造项目 | D8: 其他 | E8: 红管委 | F8: 红管委 | G8: 一般债券 | H8: 500 | I8: 2024-08
A9: 攀枝花市 | B9: 盐边县 | C9: 盐边县X001桐银路（头道河大桥至东区界段）美丽乡村路建设工程 | D9: 其他 | E9: 盐边县交通运输局 | F9: 盐边县交通运输局 | G9: 一般债券 | H9: 894 | I9: 2024-01
A10: 攀枝花市 | B10: 盐边县 | C10: 盐边县学校教室健康光源建设项目 | D10: 其他社会事业 | E10: 盐边县教育和体育局 | F10: 盐边县教育和体育局 | G10: 一般债券 | H10: 89 | I10: 2024-09
A11: 攀枝花市 | B11: 盐边县 | C11: 第一初级中学校智慧校园建设项目 | D11: 其他社会事业 | E11: 盐边县教育和体育局 | F11: 盐边县教育和体育局 | G11: 一般债券 | H11: 300 | I11: 2024-09
A12: 攀枝花市 | B12: 盐边县 | C12: 盐边县第一小学校提升改造（一期）项目 | D12: 其他社会事业 | E12: 盐边县教育和体育局 | F12: 盐边县教育和体育局 | G12: 一般债券 | H12: 200 | I12: 2024-09
A13: 攀枝花市 | B13: 盐边县 | C13: S221盐边县渔门镇桑园大桥拆除重建工程 | D13: 收费公路 | E13: 盐边县交通运输局 | F13: 盐边县交通运输局 | G13: 一般债券 | H13: 514 | I13: 2024-09
A14: 攀枝花市 | B14: 盐边县 | C14: 攀枝花二滩库区共和便民码头项目 | D14: 水运 | E14: 盐边县交通运输局 | F14: 盐边县交通运输局 | G14: 一般债券 | H14: 71 | I14: 2024-09
A15: 攀枝花市 | B15: 盐边县 | C15: 盐边县 X054 共鳡路（共和码头至三王庙段）改建工程 | D15: 综合交通枢纽（含综合交通枢纽一体化综合利用） | E15: 盐边县交通运输局 | F15: 盐边县交通运输局 | G15: 一般债券 | H15: 31 | I15: 2024-09
A16: 攀枝花市 | B16: 盐边县 | C16: 盐边县国胜乡敬老院护理能力提升改造项目 | D16: 养老托育 | E16: 盐边县民政局 | F16: 盐边县民政局 | G16: 一般债券 | H16: 299 | I16: 2024-09
A17: 攀枝花市 | B17: 盐边县 | C17: 盐边县农产品物流交易中心项目 | D17: 城乡冷链等物流基础设施 | E17: 盐边县农业农村局 | F17: 盐边县农业农村局 | G17: 专项债券 | H17: 15,371 | I17: 2024-05
A18: 攀枝花市 | B18: 盐边县 | C18: 盐边县第二人民医院建设工程项目 | D18: 卫生健康（含应急医疗救治设施、公共卫生设施） | E18: 盐边县卫生健康局 | F18: 盐边县卫生健康局 | G18: 专项债券 | H18: 7,000 | I18: 2024-05
A19: 攀枝花市 | B19: 盐边县 | C19: 盐边县城提升改造项目 | D19: 城市停车场 | E19: 盐边县规划和建设管理局 | F19: 盐边发展（集团）有限责任公司 | G19: 专项债券 | H19: 2,862 | I19: 2024-05
A20: 攀枝花市 | B20: 盐边县 | C20: 盐边站站前基础设施配套项目 | D20: 综合交通枢纽（含综合交通枢纽一体化综合利用） | E20: 盐边县规划和建设管理局 | F20: 盐边发展（集团）有限责任公司 | G20: 专项债券 | H20: 12,196 | I20: 2024-08
B21: 盐边县 | C21: 盐边县永兴片区农产品批发市场建设项目 | D21: 农产品批发市场 | E21: 盐边县经济合作和商务局 | F21: 盐边建工集团有限公司 | G21: 专项债券 | H21: 1,000 | I21: 2024-08
B22: 盐边县 | C22: 盐边县北部片区老旧小区改造项目 | D22: 城镇老旧小区改造 | E22: 盐边县规划和建设管理局 | F22: 盐边建工集团有限公司 | G22: 专项债券 | H22: 10 | I22: 2024-09
B23: 盐边县 | C23: 盐边县安宁水厂及配套输水管道工程 | D23: 供排水 | E23: 盐边县规划和建设管理局 | F23: 盐边钒钛投资集团有限公司 | G23: 专项债券 | H23: 737 | I23: 2024-08
B24: 盐边县 | C24: 盐边县保障性租赁住房建设项目 | D24: 保障性租赁住房 | E24: 盐边县规划和建设管理局 | F24: 盐边发展（集团）有限责任公司 | G24: 专项债券 | H24: 1,800 | I24: 2024-05
B25: 盐边县 | C25: 盐边县渔门片区城乡冷链物流建设项目 | D25: 城乡冷链物流设施 | E25: 盐边县供销合作社联合社 | F25: 盐边县供销合作社联合社 | G25: 专项债券 | H25: 1,600 | I25: 2024-08
B26: 盐边县 | C26: 盐边县新建红格镇第二幼儿园建设项目 | D26: 学前教育 | E26: 盐边县教育和体育局 | F26: 盐边县教育和体育局 | G26: 专项债券 | H26: 1,900 | I26: 2024-08
B27: 盐边县 | C27: 盐边县中医院改扩建及设施设备更新配套建设项目 | D27: 公共卫生设施 | E27: 盐边县卫生局 | F27: 盐边县卫生局 | G27: 专项债券 | H27: 41 | I27: 2024-08
B28: 盐边县 | C28: 盐边县第二人民医院建设二期项目（设施设备更新配置） | D28: 卫生健康（含应急医疗救治设施、公共卫生设施） | E28: 盐边县卫生局 | F28: 盐边县卫生局 | G28: 专项债券 | H28: 24 | I28: 2024-05
B29: 合计 | H29: 51,854

Sheet 37.地方政府债务限额及余额情况
A1: 2024年盐边县地方政府债务限额及余额情况决算表
G2: 单位：万元
A3: 地 区 | B3: 2024年债务限额 | E3: 2024年债务余额
B4: 小计 | C4: 一般债务 | D4: 专项债务 | E4: 小计 | F4: 一般债务 | G4: 专项债务
A5: 公 式 | B5: A=B+C | C5: B | D5: C | E5: D=E+F | F5: E | G5: F
A6: 盐边县 | B6: 126,714 | C6: 7,314 | D6: 119,400 | E6: 393,389 | F6: 145,049 | G6: 248,340
A7: 注：省级尚未批复地方债务限额，此表债务限额数据为预计数。

Sheet 38.政府债务十年到期情况
A1: 盐边县政府债券十年到期情况表
I2: 单位：万元
A3: 地 区 | B3: 2025年 | C3: 2026年 | D3: 2027年 | E3: 2028年 | F3: 2029年 | G3: 2030年 | H3: 2031年 | I3: 2032年 | J3: 2033年 | K3: 2034年
A4: 盐边县 | B4: 14,878 | C4: 8,407 | D4: 9,435 | E4: 20,120 | F4: 43,221 | G4: 34,390 | H4: 11,300 | I4: 15,872 | J4: 10,951 | K4: 39,208

Sheet 39.地方政府债务还本付息情况表
A1: 2024年盐边县地方政府债务还本付息情况表
G2: 单位：万元
A3: 地区 | B3: 2024年政府债务还本支出 | E3: 2024年政府债务付息支出
C4: 一般债务还本支出 | D4: 专项债务还本支出 | F4: 一般债务付息支出 | G4: 专项债务付息支出
A5: 公式 | B5: A=B+C | C5: B | D5: C | E5: D=E+F | F5: E | G5: F
A6: 盐边县 | B6: 54,564 | C6: 9,164 | D6: 45,400 | E6: 10,369 | F6: 4,661 | G6: 5,708

Sheet 40.新增一般债券和专项债券情况表
A1: 2024年盐边县新增地方政府债券情况表
D2: 单位：万元
A3: 地 区 | B3: 新增债券发行情况
C4: 一般债券 | D4: 专项债券
A5: 公 式 | B5: A=B+C | C5: B | D5: C
A6: 盐边县 | B6: =C6+D6 -> 89,114 | C6: 7,314 | D6: 81,800

Sheet 41.专项债券收入、支出及专项收入情况表
A1: 2024年盐边县地方政府专项债务表
B2: 单位：亿元
A3: 项目 | B3: 本级
A4: 一、专项债券收入 | B4: 10.66
A5: 二、专项债券支出 | B5: 8.57
A6: 三、还本付息 | B6: =B7+B8 -> 5.11
A7: 其中：还本决算数 | B7: 4.54
A8: 付息决算数 | B8: 0.57
A9: 四、项目负债规模 | B9: 24.83
A10: 五、已发行专项债券期限（年） | B10: 30
A11: 六、已发行专项债券利率（%） | B11: 2.38

Sheet 42.县本级重大政府投资项目表
A1: 2024年盐边县县本级重大政府投资项目表
C2: 单位：万元
A3: 项目名称 | B3: 决算数 | C3: 项目概况
A4: 烈士陵园提质改造项目 | B4: 800 | C4: 该项目只要建筑面积4200平方米，改扩建陵园出入口消防通道、停车场、纪念碑、纪念广场、烈士墓区及烈士墓，治理边坡，设立完善大门入口标识标牌，完善绿化及配套设施。
A5: 2024年城市地下管网及设施专项 | B5: 3192 | C5: 老城区改造5362户，主要建设内容：1.改造更新庭院管道26千米，立管24千米。2.更新中-低压调压箱26台。3.用户端橡胶软管更换金属波纹软管10730根。加装饶琦报警器及配套切断阀5365套。自行阀10730个。
